Workbook

Sheet Base de Dados (hidden)
AB1: Pedido
AB2: Estoque
B5: Cod. Prod. | C5: Descrição | D5: Ean | E5: Dun | F5: CO | G5: Modelo | H5: Peso
B6: 33467 | C6: EXEMPLO 1
B7: 33468 | C7: Exemplo 2
B8: 33469 | C8: EXEMPLO 3
B9: 33470 | C9: EXEMPLO 4
B10: 33487 | C10: EXEMPLO 5
B11: 33488 | C11: EXEMPLO 6
B12: 33489 | C12: EXEMPLO 7
B13: 33490 | C13: EXEMPLO 8
B14: 33679 | C14: EXEMPLO 9
B15: 42367 | C15: EXEMPLO 10
B16: 42368 | C16: EXEMPLO 11
B17: 42369 | C17: EXEMPLO 12
B18: 20137 | C18: EXEMPLO 13 | H18: 0.0035
B19: 27348 | C19: EXEMPLO 14 | H19: 0.0034
B20: 27349 | C20: EXEMPLO 15 | H20: 0.0034
B21: 31776 | C21: EXEMPLO 16 | H21: 0.00351
B22: 33709 | C22: EXEMPLO 17 | H22: 0.0035
B23: 33725 | C23: EXEMPLO 18 | H23: 0.0035
B24: 38997 | C24: EXEMPLO 19 | H24: 0.0034
B25: 38998 | C25: EXEMPLO 20 | H25: 0.0034
B26: 39810 | C26: EXEMPLO 21 | H26: 0.0035
B27: 39811 | C27: EXEMPLO 22 | H27: 0.0035
B28: 39812 | C28: EXEMPLO 23 | H28: 0.0035
B29: 39813 | C29: EXEMPLO 24 | H29: 0.0035
B30: 39814 | C30: EXEMPLO 25 | H30: 0.0035
B31: 39824 | C31: EXEMPLO 26 | H31: 0.0035
B32: 42095 | C32: EXEMPLO 27 | H32: 0.0035
B33: 42338 | C33: EXEMPLO 28 | H33: 0.0035
B34: 42339 | C34: EXEMPLO 29 | H34: 0.0035
B35: 42632 | C35: EXEMPLO 30 | H35: 0.0035
B36: 7961 | C36: EXEMPLO 31 | H36: 0.0045
B37: 12654 | C37: EXEMPLO 32 | H37: 0.0045
B38: 33462 | C38: EXEMPLO 33 | H38: 0.0045
B39: 36686 | C39: EXEMPLO 34 | H39: 0.0045
B40: 36689 | C40: EXEMPLO 35 | H40: 0.007
B41: 36693 | C41: EXEMPLO 36 | H41: 0.0045
B42: 37363 | C42: EXEMPLO 37 | H42: 0.0046
B43: 39670 | C43: EXEMPLO 38 | H43: 0.01
B44: 42424 | C44: EXEMPLO 39 | H44: 0.0045
B45: 42541 | C45: EXEMPLO 40 | H45: 0.0045
B46: 18952 | C46: EXEMPLO 41 | H46: Pesar
B47: 23293 | C47: EXEMPLO 42 | H47: 0.195
B48: 33027 | C48: EXEMPLO 43 | H48: 0.18
B49: 38679 | C49: EXEMPLO 44 | H49: 0.18
B50: 39140 | C50: EXEMPLO 45 | H50: 0.265
B51: 39141 | C51: EXEMPLO 46 | H51: Pesar
B52: 39142 | C52: EXEMPLO 47 | H52: 0.112
B53: 39225 | C53: EXEMPLO 48 | H53: 0.175
B54: 39227 | C54: EXEMPLO 49 | H54: 0.112
B55: 39228 | C55: EXEMPLO 50 | H55: Pesar
B56: 39229 | C56: EXEMPLO 51 | H56: 0.112
B57: 39230 | C57: EXEMPLO 52 | H57: 0.195
B58: 39231 | C58: EXEMPLO 53 | H58: 0.112
B59: 39232 | C59: EXEMPLO 54 | H59: 0.195
B60: 39817 | C60: EXEMPLO 55 | H60: 0.0035

Sheet Produtos (hidden)
AB1: Pedido
AB2: Estoque
C4: Produtos
C5: Papelaria e Outros
C6: PDV
C7: Envelopes
C8: Agibank

Sheet Gestão de Prazos
AC1: Pedido | AE1: Aguardando Impressão
AC2: Estoque | AE2: Imprimindo
AE3: Finalizado
C4: * Pra ativar o filtro basta digitar a informação nas caixas de texto abaixo
A12: Código | C12: OP | D12: OC | E12: Cód. Produto | F12: Descrição | G12: Modelo | H12: Data do pedido | I12: Tiragem | J12: Qtd. Total do pedido | K12: Quantidade no Pacote (Shirink) | L12: Volume de Pacotes | M12: Quantidade de und na caixa | N12: Vol. de caixa | O12: Local Entrega | P12: Data de entrega | Q12: Insumos ok? | R12: Status | S12: Data negociada | T12: Agendado | U12: Peso Unit (Kg) | V12: Peso Total (Kg) | W12: Quantidade Entregue | X12: Status2
Y13: =CONCATENATE(AA13,AB13,AC13,Z13) -> 
B14: FALSE | C14: 26066 | D14: 219543 | E14: 39811 | F14: =IFERROR(VLOOKUP('Gestão de Prazos'!$E14,Tabela6[],2,0),"Cadastrar produto na aba (Cadastro de Produtos)") -> EXEMPLO 22 | G14: =IFERROR(VLOOKUP('Gestão de Prazos'!$E14,Tabela6[],6,0),"Cadastrar") -> 0 | H14: 2021-05-11 | I14: 3996000 | J14: 3996000 | K14: - | L14: =IFERROR('Gestão de Prazos'!$J82/'Gestão de Prazos'!$K82,"-") -> - | M14: 2000 | N14: =ROUNDUP('Gestão de Prazos'!$J14/'Gestão de Prazos'!$M14,0) -> 1998 | O14: RS | P14: - | S14: - | U14: =VLOOKUP('Gestão de Prazos'!$E14,Tabela6[],7,0) -> 0.0035 | V14: ='Gestão de Prazos'!$U14*'Gestão de Prazos'!$J14 -> 13986 | Y14: =CONCATENATE($C14,$D14,$E14,$B14) -> 2606621954339811FALSO
B15: FALSE | C15: 26065 | D15: 219544 | E15: 39811 | F15: =IFERROR(VLOOKUP('Gestão de Prazos'!$E15,Tabela6[],2,0),"Cadastrar produto na aba (Cadastro de Produtos)") -> EXEMPLO 22 | G15: =IFERROR(VLOOKUP('Gestão de Prazos'!$E15,Tabela6[],6,0),"Cadastrar") -> 0 | H15: 2021-05-11 | I15: 2000000 | J15: 2000000 | K15: - | L15: =IFERROR('Gestão de Prazos'!$J81/'Gestão de Prazos'!$K81,"-") -> - | M15: 2000 | N15: =ROUNDUP('Gestão de Prazos'!$J15/'Gestão de Prazos'!$M15,0) -> 1000 | O15: RS | P15: 2021-07-05 | S15: 2021-07-05 | U15: =VLOOKUP('Gestão de Prazos'!$E15,Tabela6[],7,0) -> 0.0035 | V15: ='Gestão de Prazos'!$U15*'Gestão de Prazos'!$J15 -> 7000 | Y15: =CONCATENATE($C15,$D15,$E15,$B15) -> 2606521954439811FALSO
B16: FALSE | C16: 26060 | D16: 219542 | E16: 39810 | F16: =IFERROR(VLOOKUP('Gestão de Prazos'!$E16,Tabela6[],2,0),"Cadastrar produto na aba (Cadastro de Produtos)") -> EXEMPLO 21 | G16: =IFERROR(VLOOKUP('Gestão de Prazos'!$E16,Tabela6[],6,0),"Cadastrar") -> 0 | H16: 2021-05-11 | I16: 1962000 | J16: 1962000 | K16: - | L16: =IFERROR('Gestão de Prazos'!$J89/'Gestão de Prazos'!$K89,"-") -> - | M16: 2000 | N16: =ROUNDUP('Gestão de Prazos'!$J16/'Gestão de Prazos'!$M16,0) -> 981 | O16: RS | P16: 2021-07-05 | S16: 2021-07-05 | U16: =VLOOKUP('Gestão de Prazos'!$E16,Tabela6[],7,0) -> 0.0035 | V16: ='Gestão de Prazos'!$U16*'Gestão de Prazos'!$J16 -> 6867 | Y16: 2606021954239810FALSO
B17: FALSE | C17: 26067 | D17: 219546 | E17: 42338 | F17: =IFERROR(VLOOKUP('Gestão de Prazos'!$E17,Tabela6[],2,0),"Cadastrar produto na aba (Cadastro de Produtos)") -> EXEMPLO 28 | G17: =IFERROR(VLOOKUP('Gestão de Prazos'!$E17,Tabela6[],6,0),"Cadastrar") -> 0 | H17: 2021-05-11 | I17: 250000 | J17: 250000 | K17: 250 | L17: =IFERROR('Gestão de Prazos'!$J113/'Gestão de Prazos'!$K113,"-") -> - | M17: 1000 | N17: =ROUNDUP('Gestão de Prazos'!$J17/'Gestão de Prazos'!$M17,0) -> 250 | O17: SP | P17: 2021-07-05 | S17: 2021-07-05 | U17: =VLOOKUP('Gestão de Prazos'!$E17,Tabela6[],7,0) -> 0.0035 | V17: ='Gestão de Prazos'!$U17*'Gestão de Prazos'!$J17 -> 875 | Y17: 2606721954642338FALSO
B18: FALSE | C18: 26045 | D18: 219109 | E18: 39811 | F18: =IFERROR(VLOOKUP('Gestão de Prazos'!$E18,Tabela6[],2,0),"Cadastrar produto na aba (Cadastro de Produtos)") -> EXEMPLO 22 | G18: =IFERROR(VLOOKUP('Gestão de Prazos'!$E18,Tabela6[],6,0),"Cadastrar") -> 0 | H18: 2021-05-07 | I18: 3130000 | J18: 3130000 | K18: - | L18: =IFERROR('Gestão de Prazos'!$J78/'Gestão de Prazos'!$K78,"-") -> - | M18: 2000 | N18: =ROUNDUP('Gestão de Prazos'!$J18/'Gestão de Prazos'!$M18,0) -> 1565 | O18: RS | P18: 2021-06-14 | S18: 2021-06-14 | U18: =VLOOKUP('Gestão de Prazos'!$E18,Tabela6[],7,0) -> 0.0035 | V18: ='Gestão de Prazos'!$U18*'Gestão de Prazos'!$J18 -> 10955 | Y18: 2604521910939811FALSO
B19: FALSE | C19: 26046 | D19: 219108 | E19: 39811 | F19: =IFERROR(VLOOKUP('Gestão de Prazos'!$E19,Tabela6[],2,0),"Cadastrar produto na aba (Cadastro de Produtos)") -> EXEMPLO 22 | G19: =IFERROR(VLOOKUP('Gestão de Prazos'!$E19,Tabela6[],6,0),"Cadastrar") -> 0 | H19: 2021-05-07 | I19: 540000 | J19: 540000 | K19: - | L19: =IFERROR('Gestão de Prazos'!$J79/'Gestão de Prazos'!$K79,"-") -> 6200 | M19: 2000 | N19: =ROUNDUP('Gestão de Prazos'!$J19/'Gestão de Prazos'!$M19,0) -> 270 | O19: RS | P19: 2021-06-14 | S19: 2021-06-14 | U19: =VLOOKUP('Gestão de Prazos'!$E19,Tabela6[],7,0) -> 0.0035 | V19: ='Gestão de Prazos'!$U19*'Gestão de Prazos'!$J19 -> 1890 | Y19: 2604621910839811FALSO
B20: FALSE | C20: 26044 | D20: 219106 | E20: 39811 | F20: =IFERROR(VLOOKUP('Gestão de Prazos'!$E20,Tabela6[],2,0),"Cadastrar produto na aba (Cadastro de Produtos)") -> EXEMPLO 22 | G20: =IFERROR(VLOOKUP('Gestão de Prazos'!$E20,Tabela6[],6,0),"Cadastrar") -> 0 | H20: 2021-05-07 | I20: 326000 | J20: 326000 | K20: - | L20: =IFERROR('Gestão de Prazos'!$J80/'Gestão de Prazos'!$K80,"-") -> - | M20: 2000 | N20: =ROUNDUP('Gestão de Prazos'!$J20/'Gestão de Prazos'!$M20,0) -> 163 | O20: RS | P20: 2021-06-14 | S20: 2021-06-14 | U20: =VLOOKUP('Gestão de Prazos'!$E20,Tabela6[],7,0) -> 0.0035 | V20: ='Gestão de Prazos'!$U20*'Gestão de Prazos'!$J20 -> 1141 | Y20: 2604421910639811FALSO
B21: FALSE | C21: 26041 | D21: 219103 | E21: 39812 | F21: =IFERROR(VLOOKUP('Gestão de Prazos'!$E21,Tabela6[],2,0),"Cadastrar produto na aba (Cadastro de Produtos)") -> EXEMPLO 23 | G21: =IFERROR(VLOOKUP('Gestão de Prazos'!$E21,Tabela6[],6,0),"Cadastrar") -> 0 | H21: 2021-05-07 | I21: 300000 | J21: 300000 | K21: - | L21: =IFERROR('Gestão de Prazos'!$J90/'Gestão de Prazos'!$K90,"-") -> - | M21: 2000 | N21: =ROUNDUP('Gestão de Prazos'!$J21/'Gestão de Prazos'!$M21,0) -> 150 | O21: RS | P21: 2021-06-14 | S21: 2021-06-14 | U21: =VLOOKUP('Gestão de Prazos'!$E21,Tabela6[],7,0) -> 0.0035 | V21: ='Gestão de Prazos'!$U21*'Gestão de Prazos'!$J21 -> 1050 | Y21: 2604121910339812FALSO
B22: FALSE | C22: 26043 | D22: 219104 | E22: 39813 | F22: =IFERROR(VLOOKUP('Gestão de Prazos'!$E22,Tabela6[],2,0),"Cadastrar produto na aba (Cadastro de Produtos)") -> EXEMPLO 24 | G22: =IFERROR(VLOOKUP('Gestão de Prazos'!$E22,Tabela6[],6,0),"Cadastrar") -> 0 | H22: 2021-05-11 | I22: 600000 | J22: 600000 | K22: - | L22: =IFERROR('Gestão de Prazos'!$J121/'Gestão de Prazos'!$K121,"-") -> - | M22: 2000 | N22: =ROUNDUP('Gestão de Prazos'!$J22/'Gestão de Prazos'!$M22,0) -> 300 | O22: RS | P22: 2021-06-14 | S22: 2021-06-14 | U22: =VLOOKUP('Gestão de Prazos'!$E22,Tabela6[],7,0) -> 0.0035 | V22: ='Gestão de Prazos'!$U22*'Gestão de Prazos'!$J22 -> 2100 | Y22: 2604321910439813FALSO
B23: FALSE | C23: 26034 | D23: 219013 | E23: 42338 | F23: =IFERROR(VLOOKUP('Gestão de Prazos'!$E23,Tabela6[],2,0),"Cadastrar produto na aba (Cadastro de Produtos)") -> EXEMPLO 28 | G23: =IFERROR(VLOOKUP('Gestão de Prazos'!$E23,Tabela6[],6,0),"Cadastrar") -> 0 | H23: 2021-05-07 | I23: 250000 | J23: 250000 | K23: 250 | L23: =IFERROR('Gestão de Prazos'!$J111/'Gestão de Prazos'!$K111,"-") -> - | M23: 1000 | N23: =ROUNDUP('Gestão de Prazos'!$J23/'Gestão de Prazos'!$M23,0) -> 250 | O23: SP | P23: 2021-06-11 | S23: 2021-06-11 | U23: =VLOOKUP('Gestão de Prazos'!$E23,Tabela6[],7,0) -> 0.0035 | V23: ='Gestão de Prazos'!$U23*'Gestão de Prazos'!$J23 -> 875 | Y23: 2603421901342338FALSO
B24: FALSE | C24: 26033 | D24: 219014 | E24: 42338 | F24: =IFERROR(VLOOKUP('Gestão de Prazos'!$E24,Tabela6[],2,0),"Cadastrar produto na aba (Cadastro de Produtos)") -> EXEMPLO 28 | G24: =IFERROR(VLOOKUP('Gestão de Prazos'!$E24,Tabela6[],6,0),"Cadastrar") -> 0 | H24: 2021-05-07 | I24: 125000 | J24: 125000 | K24: 250 | L24: =IFERROR('Gestão de Prazos'!$J112/'Gestão de Prazos'!$K112,"-") -> - | M24: 1000 | N24: =ROUNDUP('Gestão de Prazos'!$J24/'Gestão de Prazos'!$M24,0) -> 125 | O24: SP | P24: 2021-06-11 | S24: 2021-06-11 | U24: =VLOOKUP('Gestão de Prazos'!$E24,Tabela6[],7,0) -> 0.0035 | V24: ='Gestão de Prazos'!$U24*'Gestão de Prazos'!$J24 -> 437.5 | Y24: 2603321901442338FALSO
B25: FALSE | C25: 26033 | D25: 219014 | E25: 42339 | F25: =IFERROR(VLOOKUP('Gestão de Prazos'!$E25,Tabela6[],2,0),"Cadastrar produto na aba (Cadastro de Produtos)") -> EXEMPLO 29 | G25: =IFERROR(VLOOKUP('Gestão de Prazos'!$E25,Tabela6[],6,0),"Cadastrar") -> 0 | H25: 2021-05-07 | I25: 125000 | J25: 125000 | K25: 250 | L25: =IFERROR('Gestão de Prazos'!$J118/'Gestão de Prazos'!$K118,"-") -> - | M25: 1000 | N25: =ROUNDUP('Gestão de Prazos'!$J25/'Gestão de Prazos'!$M25,0) -> 125 | O25: SP | P25: 2021-06-11 | S25: 2021-06-11 | U25: =VLOOKUP('Gestão de Prazos'!$E25,Tabela6[],7,0) -> 0.0035 | V25: ='Gestão de Prazos'!$U25*'Gestão de Prazos'!$J25 -> 437.5 | Y25: 2603321901442339FALSO
B26: FALSE | C26: 25826 | D26: 216228 | E26: 39811 | F26: =IFERROR(VLOOKUP('Gestão de Prazos'!$E26,Tabela6[],2,0),"Cadastrar produto na aba (Cadastro de Produtos)") -> EXEMPLO 22 | G26: =IFERROR(VLOOKUP('Gestão de Prazos'!$E26,Tabela6[],6,0),"Cadastrar") -> 0 | H26: 2021-04-14 | I26: 3000000 | J26: 3000000 | K26: - | L26: =IFERROR('Gestão de Prazos'!$J77/'Gestão de Prazos'!$K77,"-") -> - | M26: 2000 | N26: =ROUNDUP('Gestão de Prazos'!$J26/'Gestão de Prazos'!$M26,0) -> 1500 | O26: RS | P26: 2021-06-04 | S26: 2021-06-04 | U26: =VLOOKUP('Gestão de Prazos'!$E26,Tabela6[],7,0) -> 0.0035 | V26: ='Gestão de Prazos'!$U26*'Gestão de Prazos'!$J26 -> 10500 | Y26: 2582621622839811FALSO
B27: FALSE | C27: 25824 | D27: 216228 | E27: 39810 | F27: =IFERROR(VLOOKUP('Gestão de Prazos'!$E27,Tabela6[],2,0),"Cadastrar produto na aba (Cadastro de Produtos)") -> EXEMPLO 21 | G27: =IFERROR(VLOOKUP('Gestão de Prazos'!$E27,Tabela6[],6,0),"Cadastrar") -> 0 | H27: 2021-04-14 | I27: 2000000 | J27: 2000000 | K27: - | L27: =IFERROR('Gestão de Prazos'!$J88/'Gestão de Prazos'!$K88,"-") -> - | M27: 2000 | N27: =ROUNDUP('Gestão de Prazos'!$J27/'Gestão de Prazos'!$M27,0) -> 1000 | O27: RS | P27: 2021-06-04 | S27: 2021-06-04 | U27: =VLOOKUP('Gestão de Prazos'!$E27,Tabela6[],7,0) -> 0.0035 | V27: ='Gestão de Prazos'!$U27*'Gestão de Prazos'!$J27 -> 7000 | Y27: 2582421622839810FALSO
B28: FALSE | C28: 25820 | D28: 216222 | E28: 39810 | F28: =IFERROR(VLOOKUP('Gestão de Prazos'!$E28,Tabela6[],2,0),"Cadastrar produto na aba (Cadastro de Produtos)") -> EXEMPLO 21 | G28: =IFERROR(VLOOKUP('Gestão de Prazos'!$E28,Tabela6[],6,0),"Cadastrar") -> 0 | H28: 2021-04-14 | I28: 2064000 | J28: 2064000 | K28: - | L28: =IFERROR('Gestão de Prazos'!$J87/'Gestão de Prazos'!$K87,"-") -> - | M28: 2000 | N28: =ROUNDUP('Gestão de Prazos'!$J28/'Gestão de Prazos'!$M28,0) -> 1032 | O28: RS | P28: 2021-05-17 | S28: 2021-05-17 | U28: =VLOOKUP('Gestão de Prazos'!$E28,Tabela6[],7,0) -> 0.0035 | V28: ='Gestão de Prazos'!$U28*'Gestão de Prazos'!$J28 -> 7224 | Y28: 2582021622239810FALSO
B29: FALSE | C29: 25238 | D29: 210796 | E29: 39227 | F29: =IFERROR(VLOOKUP('Gestão de Prazos'!$E29,Tabela6[],2,0),"Cadastrar produto na aba (Cadastro de Produtos)") -> EXEMPLO 49 | G29: =IFERROR(VLOOKUP('Gestão de Prazos'!$E29,Tabela6[],6,0),"Cadastrar") -> 0 | H29: 2021-02-19 | I29: 2000 | J29: 2000 | K29: - | L29: =IFERROR('Gestão de Prazos'!$J38/'Gestão de Prazos'!$K38,"-") -> 300 | M29: 20 | N29: =ROUNDUP('Gestão de Prazos'!$J29/'Gestão de Prazos'!$M29,0) -> 100 | O29: RS | P29: 2021-05-15 | S29: 2021-05-15 | U29: =VLOOKUP('Gestão de Prazos'!$E29,Tabela6[],7,0) -> 0.112 | V29: ='Gestão de Prazos'!$U29*'Gestão de Prazos'!$J29 -> 224 | Y29: 2523821079639227FALSO
B30: FALSE | C30: 25239 | D30: 210796 | E30: 39225 | F30: =IFERROR(VLOOKUP('Gestão de Prazos'!$E30,Tabela6[],2,0),"Cadastrar produto na aba (Cadastro de Produtos)") -> EXEMPLO 48 | G30: =IFERROR(VLOOKUP('Gestão de Prazos'!$E30,Tabela6[],6,0),"Cadastrar") -> 0 | H30: - | I30: 1000 | J30: 1000 | K30: - | L30: =IFERROR('Gestão de Prazos'!$J52/'Gestão de Prazos'!$K52,"-") -> 350 | M30: 20 | N30: =ROUNDUP('Gestão de Prazos'!$J30/'Gestão de Prazos'!$M30,0) -> 50 | O30: RS | P30: 2021-05-15 | S30: 2021-05-15 | U30: =VLOOKUP('Gestão de Prazos'!$E30,Tabela6[],7,0) -> 0.175 | V30: ='Gestão de Prazos'!$U30*'Gestão de Prazos'!$J30 -> 175 | Y30: 2523921079639225FALSO
B31: FALSE | C31: 25828 | D31: 216013 | E31: 39231 | F31: =IFERROR(VLOOKUP('Gestão de Prazos'!$E31,Tabela6[],2,0),"Cadastrar produto na aba (Cadastro de Produtos)") -> EXEMPLO 53 | G31: =IFERROR(VLOOKUP('Gestão de Prazos'!$E31,Tabela6[],6,0),"Cadastrar") -> 0 | H31: 2021-04-13 | I31: 5490 | J31: 5490 | K31: - | L31: =IFERROR('Gestão de Prazos'!$J60/'Gestão de Prazos'!$K60,"-") -> - | M31: 30 | N31: =ROUNDUP('Gestão de Prazos'!$J31/'Gestão de Prazos'!$M31,0) -> 183 | O31: SP | P31: 2021-05-14 | S31: 2021-05-14 | U31: =VLOOKUP('Gestão de Prazos'!$E31,Tabela6[],7,0) -> 0.112 | V31: ='Gestão de Prazos'!$U31*'Gestão de Prazos'!$J31 -> 614.88 | Y31: 2582821601339231FALSO
B32: FALSE | C32: 25497 | D32: 212735 | E32: 39227 | F32: =IFERROR(VLOOKUP('Gestão de Prazos'!$E32,Tabela6[],2,0),"Cadastrar produto na aba (Cadastro de Produtos)") -> EXEMPLO 49 | G32: =IFERROR(VLOOKUP('Gestão de Prazos'!$E32,Tabela6[],6,0),"Cadastrar") -> 0 | H32: 2021-03-11 | I32: 7380 | J32: 7380 | K32: - | L32: =IFERROR('Gestão de Prazos'!$J39/'Gestão de Prazos'!$K39,"-") -> 500 | M32: 20 | N32: =ROUNDUP('Gestão de Prazos'!$J32/'Gestão de Prazos'!$M32,0) -> 369 | O32: SP | P32: 2021-05-13 | S32: 2021-05-13 | U32: =VLOOKUP('Gestão de Prazos'!$E32,Tabela6[],7,0) -> 0.112 | V32: ='Gestão de Prazos'!$U32*'Gestão de Prazos'!$J32 -> 826.56 | Y32: 2549721273539227FALSO
B33: FALSE | C33: 25496 | D33: 212735 | E33: 39225 | F33: =IFERROR(VLOOKUP('Gestão de Prazos'!$E33,Tabela6[],2,0),"Cadastrar produto na aba (Cadastro de Produtos)") -> EXEMPLO 48 | G33: =IFERROR(VLOOKUP('Gestão de Prazos'!$E33,Tabela6[],6,0),"Cadastrar") -> 0 | H33: 2021-03-11 | I33: 2280 | J33: 2280 | K33: - | L33: =IFERROR('Gestão de Prazos'!$J53/'Gestão de Prazos'!$K53,"-") -> 600 | M33: 20 | N33: =ROUNDUP('Gestão de Prazos'!$J33/'Gestão de Prazos'!$M33,0) -> 114 | O33: SP | P33: 2021-05-13 | S33: 2021-05-13 | U33: =VLOOKUP('Gestão de Prazos'!$E33,Tabela6[],7,0) -> 0.175 | V33: ='Gestão de Prazos'!$U33*'Gestão de Prazos'!$J33 -> 399 | Y33: 2549621273539225FALSO
B34: FALSE | C34: 25498 | D34: 212735 | E34: 39231 | F34: =IFERROR(VLOOKUP('Gestão de Prazos'!$E34,Tabela6[],2,0),"Cadastrar produto na aba (Cadastro de Produtos)") -> EXEMPLO 53 | G34: =IFERROR(VLOOKUP('Gestão de Prazos'!$E34,Tabela6[],6,0),"Cadastrar") -> 0 | H34: 2021-03-11 | I34: 1290 | J34: 1290 | K34: - | L34: =IFERROR('Gestão de Prazos'!$J59/'Gestão de Prazos'!$K59,"-") -> - | M34: 30 | N34: =ROUNDUP('Gestão de Prazos'!$J34/'Gestão de Prazos'!$M34,0) -> 43 | O34: SP | P34: 2021-05-13 | S34: 2021-05-13 | U34: =VLOOKUP('Gestão de Prazos'!$E34,Tabela6[],7,0) -> 0.112 | V34: ='Gestão de Prazos'!$U34*'Gestão de Prazos'!$J34 -> 144.48 | Y34: 2549821273539231FALSO
B35: FALSE | C35: 25150 | D35: 210015 | E35: 39225 | F35: =IFERROR(VLOOKUP('Gestão de Prazos'!$E35,Tabela6[],2,0),"Cadastrar produto na aba (Cadastro de Produtos)") -> EXEMPLO 48 | G35: =IFERROR(VLOOKUP('Gestão de Prazos'!$E35,Tabela6[],6,0),"Cadastrar") -> 0 | H35: 2021-02-12 | I35: 1400 | J35: 1400 | K35: - | L35: =IFERROR('Gestão de Prazos'!$J47/'Gestão de Prazos'!$K47,"-") -> 6000 | M35: 20 | N35: =ROUNDUP('Gestão de Prazos'!$J35/'Gestão de Prazos'!$M35,0) -> 70 | O35: RS | P35: 2021-05-07 | S35: 2021-05-07 | U35: =VLOOKUP('Gestão de Prazos'!$E35,Tabela6[],7,0) -> 0.175 | V35: ='Gestão de Prazos'!$U35*'Gestão de Prazos'!$J35 -> 245 | Y35: 2515021001539225FALSO
B36: FALSE | C36: 25445 | D36: 212457 | E36: 39811 | F36: =IFERROR(VLOOKUP('Gestão de Prazos'!$E36,Tabela6[],2,0),"Cadastrar produto na aba (Cadastro de Produtos)") -> EXEMPLO 22 | G36: =IFERROR(VLOOKUP('Gestão de Prazos'!$E36,Tabela6[],6,0),"Cadastrar") -> 0 | H36: 2021-03-10 | I36: 5200000 | J36: 5200000 | K36: - | L36: =IFERROR('Gestão de Prazos'!$J76/'Gestão de Prazos'!$K76,"-") -> - | M36: 2000 | N36: =ROUNDUP('Gestão de Prazos'!$J36/'Gestão de Prazos'!$M36,0) -> 2600 | O36: RS | P36: 2021-05-05 | S36: 2021-05-05 | U36: =VLOOKUP('Gestão de Prazos'!$E36,Tabela6[],7,0) -> 0.0035 | V36: ='Gestão de Prazos'!$U36*'Gestão de Prazos'!$J36 -> 18200 | Y36: 2544521245739811FALSO
B37: FALSE | C37: 25444 | D37: 212457 | E37: 39810 | F37: =IFERROR(VLOOKUP('Gestão de Prazos'!$E37,Tabela6[],2,0),"Cadastrar produto na aba (Cadastro de Produtos)") -> EXEMPLO 21 | G37: =IFERROR(VLOOKUP('Gestão de Prazos'!$E37,Tabela6[],6,0),"Cadastrar") -> 0 | H37: 2021-03-10 | I37: 1000000 | J37: 1000000 | K37: - | L37: =IFERROR('Gestão de Prazos'!$J85/'Gestão de Prazos'!$K85,"-") -> - | M37: 2000 | N37: =ROUNDUP('Gestão de Prazos'!$J37/'Gestão de Prazos'!$M37,0) -> 500 | O37: RS | P37: 2021-05-05 | S37: 2021-05-05 | U37: =VLOOKUP('Gestão de Prazos'!$E37,Tabela6[],7,0) -> 0.0035 | V37: ='Gestão de Prazos'!$U37*'Gestão de Prazos'!$J37 -> 3500 | Y37: 2544421245739810FALSO
B38: FALSE | C38: 25429 | D38: 212276 | E38: 33470 | F38: =IFERROR(VLOOKUP('Gestão de Prazos'!$E38,Tabela6[],2,0),"Cadastrar produto na aba (Cadastro de Produtos)") -> EXEMPLO 4 | G38: =IFERROR(VLOOKUP('Gestão de Prazos'!$E38,Tabela6[],6,0),"Cadastrar") -> 0 | H38: 2021-03-08 | I38: 60000 | J38: 60000 | K38: 200 | L38: =IFERROR('Gestão de Prazos'!$J126/'Gestão de Prazos'!$K126,"-") -> - | M38: 5 | N38: =ROUNDUP('Gestão de Prazos'!$J38/'Gestão de Prazos'!$M38,0) -> 12000 | O38: RS | P38: 2021-05-05 | S38: 2021-05-05 | U38: =VLOOKUP('Gestão de Prazos'!$E38,Tabela6[],7,0) -> 0 | V38: ='Gestão de Prazos'!$U38*'Gestão de Prazos'!$J38 -> 0 | Y38: 2542921227633470FALSO
B39: FALSE | C39: 26013 | D39: 218466 | E39: 42338 | F39: =IFERROR(VLOOKUP('Gestão de Prazos'!$E39,Tabela6[],2,0),"Cadastrar produto na aba (Cadastro de Produtos)") -> EXEMPLO 28 | G39: =IFERROR(VLOOKUP('Gestão de Prazos'!$E39,Tabela6[],6,0),"Cadastrar") -> 0 | H39: 2021-05-04 | I39: 125000 | J39: 125000 | K39: 250 | L39: =IFERROR('Gestão de Prazos'!$J110/'Gestão de Prazos'!$K110,"-") -> - | M39: 1000 | N39: =ROUNDUP('Gestão de Prazos'!$J39/'Gestão de Prazos'!$M39,0) -> 125 | O39: SP | P39: 2021-05-04 | S39: 2021-05-04 | U39: =VLOOKUP('Gestão de Prazos'!$E39,Tabela6[],7,0) -> 0.0035 | V39: ='Gestão de Prazos'!$U39*'Gestão de Prazos'!$J39 -> 437.5 | Y39: 2601321846642338FALSO
B40: FALSE | C40: 25760 | D40: 214310 | E40: 39813 | F40: =IFERROR(VLOOKUP('Gestão de Prazos'!$E40,Tabela6[],2,0),"Cadastrar produto na aba (Cadastro de Produtos)") -> EXEMPLO 24 | G40: =IFERROR(VLOOKUP('Gestão de Prazos'!$E40,Tabela6[],6,0),"Cadastrar") -> 0 | I40: 160000 | J40: 160000 | K40: - | L40: =IFERROR('Gestão de Prazos'!$J120/'Gestão de Prazos'!$K120,"-") -> - | M40: 2000 | N40: =ROUNDUP('Gestão de Prazos'!$J40/'Gestão de Prazos'!$M40,0) -> 80 | O40: RS | P40: 2021-05-03 | S40: 2021-05-03 | U40: =VLOOKUP('Gestão de Prazos'!$E40,Tabela6[],7,0) -> 0.0035 | V40: ='Gestão de Prazos'!$U40*'Gestão de Prazos'!$J40 -> 560 | Y40: 2576021431039813FALSO
B41: FALSE | C41: 25394 | D41: 211730 | E41: 33489 | F41: =IFERROR(VLOOKUP('Gestão de Prazos'!$E41,Tabela6[],2,0),"Cadastrar produto na aba (Cadastro de Produtos)") -> EXEMPLO 7 | G41: =IFERROR(VLOOKUP('Gestão de Prazos'!$E41,Tabela6[],6,0),"Cadastrar") -> 0 | H41: 2021-03-04 | I41: 50000 | J41: 50000 | K41: 200 | L41: =IFERROR('Gestão de Prazos'!$J134/'Gestão de Prazos'!$K134,"-") -> - | M41: 5 | N41: =ROUNDUP('Gestão de Prazos'!$J41/'Gestão de Prazos'!$M41,0) -> 10000 | O41: RS | P41: 2021-05-03 | S41: 2021-05-03 | U41: =VLOOKUP('Gestão de Prazos'!$E41,Tabela6[],7,0) -> 0 | V41: ='Gestão de Prazos'!$U41*'Gestão de Prazos'!$J41 -> 0 | Y41: 2539421173033489FALSO
B42: FALSE | C42: 25392 | D42: 211747 | E42: 33490 | F42: =IFERROR(VLOOKUP('Gestão de Prazos'!$E42,Tabela6[],2,0),"Cadastrar produto na aba (Cadastro de Produtos)") -> EXEMPLO 8 | G42: =IFERROR(VLOOKUP('Gestão de Prazos'!$E42,Tabela6[],6,0),"Cadastrar") -> 0 | H42: 2021-03-04 | I42: 20000 | J42: 20000 | K42: 200 | L42: =IFERROR('Gestão de Prazos'!$J138/'Gestão de Prazos'!$K138,"-") -> 200 | M42: 5 | N42: =ROUNDUP('Gestão de Prazos'!$J42/'Gestão de Prazos'!$M42,0) -> 4000 | O42: RS | P42: 2021-05-03 | S42: 2021-05-03 | U42: =VLOOKUP('Gestão de Prazos'!$E42,Tabela6[],7,0) -> 0 | V42: ='Gestão de Prazos'!$U42*'Gestão de Prazos'!$J42 -> 0 | Y42: 2539221174733490FALSO
B43: FALSE | C43: 25492 | D43: 212752 | E43: 39227 | F43: =IFERROR(VLOOKUP('Gestão de Prazos'!$E43,Tabela6[],2,0),"Cadastrar produto na aba (Cadastro de Produtos)") -> EXEMPLO 49 | G43: =IFERROR(VLOOKUP('Gestão de Prazos'!$E43,Tabela6[],6,0),"Cadastrar") -> 0 | H43: 2021-03-11 | I43: 7380 | J43: 7380 | K43: - | L43: =IFERROR('Gestão de Prazos'!$J41/'Gestão de Prazos'!$K41,"-") -> 250 | M43: 20 | N43: =ROUNDUP('Gestão de Prazos'!$J43/'Gestão de Prazos'!$M43,0) -> 369 | O43: SP | P43: 2021-04-27 | S43: 2021-04-27 | U43: =VLOOKUP('Gestão de Prazos'!$E43,Tabela6[],7,0) -> 0.112 | V43: ='Gestão de Prazos'!$U43*'Gestão de Prazos'!$J43 -> 826.56 | Y43: 2549221275239227FALSO
B44: FALSE | C44: 25153 | D44: 209974 | E44: 39227 | F44: =IFERROR(VLOOKUP('Gestão de Prazos'!$E44,Tabela6[],2,0),"Cadastrar produto na aba (Cadastro de Produtos)") -> EXEMPLO 49 | G44: =IFERROR(VLOOKUP('Gestão de Prazos'!$E44,Tabela6[],6,0),"Cadastrar") -> 0 | H44: 2021-01-12 | I44: 2000 | J44: 2000 | K44: - | L44: =IFERROR('Gestão de Prazos'!$J35/'Gestão de Prazos'!$K35,"-") -> - | M44: 20 | N44: =ROUNDUP('Gestão de Prazos'!$J44/'Gestão de Prazos'!$M44,0) -> 100 | O44: RS | P44: 2021-04-20 | S44: 2021-04-20 | U44: =VLOOKUP('Gestão de Prazos'!$E44,Tabela6[],7,0) -> 0.112 | V44: ='Gestão de Prazos'!$U44*'Gestão de Prazos'!$J44 -> 224 | Y44: 2515320997439227FALSO
B45: FALSE | C45: 25152 | D45: 209974 | E45: 39225 | F45: =IFERROR(VLOOKUP('Gestão de Prazos'!$E45,Tabela6[],2,0),"Cadastrar produto na aba (Cadastro de Produtos)") -> EXEMPLO 48 | G45: =IFERROR(VLOOKUP('Gestão de Prazos'!$E45,Tabela6[],6,0),"Cadastrar") -> 0 | H45: 2021-02-12 | I45: 1400 | J45: 1400 | K45: - | L45: =IFERROR('Gestão de Prazos'!$J48/'Gestão de Prazos'!$K48,"-") -> 10000 | M45: 20 | N45: =ROUNDUP('Gestão de Prazos'!$J45/'Gestão de Prazos'!$M45,0) -> 70 | O45: RS | P45: 2021-04-20 | S45: 2021-04-20 | U45: =VLOOKUP('Gestão de Prazos'!$E45,Tabela6[],7,0) -> 0.175 | V45: ='Gestão de Prazos'!$U45*'Gestão de Prazos'!$J45 -> 245 | Y45: 2515220997439225FALSO
B46: FALSE | C46: 25237 | D46: 210800 | E46: 12654 | F46: =IFERROR(VLOOKUP('Gestão de Prazos'!$E46,Tabela6[],2,0),"Cadastrar produto na aba (Cadastro de Produtos)") -> EXEMPLO 32 | G46: =IFERROR(VLOOKUP('Gestão de Prazos'!$E46,Tabela6[],6,0),"Cadastrar") -> 0 | H46: 2021-02-19 | I46: 141000 | J46: 141000 | K46: - | L46: =IFERROR('Gestão de Prazos'!$J19/'Gestão de Prazos'!$K19,"-") -> - | M46: 3000 | N46: =ROUNDUP('Gestão de Prazos'!$J46/'Gestão de Prazos'!$M46,0) -> 47 | O46: SP | P46: 2021-04-12 | S46: 2021-04-12 | U46: =VLOOKUP('Gestão de Prazos'!$E46,Tabela6[],7,0) -> 0.0045 | V46: ='Gestão de Prazos'!$U46*'Gestão de Prazos'!$J46 -> 634.5 | Y46: 2523721080012654FALSO
B47: FALSE | C47: 25581 | D47: 212895 | E47: 42424 | F47: =IFERROR(VLOOKUP('Gestão de Prazos'!$E47,Tabela6[],2,0),"Cadastrar produto na aba (Cadastro de Produtos)") -> EXEMPLO 39 | G47: =IFERROR(VLOOKUP('Gestão de Prazos'!$E47,Tabela6[],6,0),"Cadastrar") -> 0 | H47: 2021-03-12 | I47: 60000 | J47: 60000 | K47: 10 | L47: =IFERROR('Gestão de Prazos'!$J23/'Gestão de Prazos'!$K23,"-") -> 1000 | M47: 100 | N47: =ROUNDUP('Gestão de Prazos'!$J47/'Gestão de Prazos'!$M47,0) -> 600 | O47: SP | P47: 2021-04-12 | S47: 2021-04-12 | U47: =VLOOKUP('Gestão de Prazos'!$E47,Tabela6[],7,0) -> 0.0045 | V47: ='Gestão de Prazos'!$U47*'Gestão de Prazos'!$J47 -> 270 | Y47: 2558121289542424FALSO
B48: FALSE | C48: 25722 | D48: 217468 | E48: 42632 | F48: =IFERROR(VLOOKUP('Gestão de Prazos'!$E48,Tabela6[],2,0),"Cadastrar produto na aba (Cadastro de Produtos)") -> EXEMPLO 30 | G48: =IFERROR(VLOOKUP('Gestão de Prazos'!$E48,Tabela6[],6,0),"Cadastrar") -> 0 | H48: 2021-03-12 | I48: 50000 | J48: 50000 | K48: 5 | L48: =IFERROR('Gestão de Prazos'!$J119/'Gestão de Prazos'!$K119,"-") -> - | M48: 500 | N48: =ROUNDUP('Gestão de Prazos'!$J48/'Gestão de Prazos'!$M48,0) -> 100 | O48: SP | P48: 2021-04-12 | S48: 2021-04-12 | U48: =VLOOKUP('Gestão de Prazos'!$E48,Tabela6[],7,0) -> 0.0035 | V48: ='Gestão de Prazos'!$U48*'Gestão de Prazos'!$J48 -> 175 | Y48: 2572221746842632FALSO
B49: FALSE | C49: 25491 | D49: 212821 | E49: 42338 | F49: =IFERROR(VLOOKUP('Gestão de Prazos'!$E49,Tabela6[],2,0),"Cadastrar produto na aba (Cadastro de Produtos)") -> EXEMPLO 28 | G49: =IFERROR(VLOOKUP('Gestão de Prazos'!$E49,Tabela6[],6,0),"Cadastrar") -> 0 | H49: 2021-03-12 | I49: 175000 | J49: 175000 | K49: 250 | L49: =IFERROR('Gestão de Prazos'!$J109/'Gestão de Prazos'!$K109,"-") -> - | M49: 1000 | N49: =ROUNDUP('Gestão de Prazos'!$J49/'Gestão de Prazos'!$M49,0) -> 175 | O49: SP | P49: 2021-04-09 | S49: 2021-04-09 | U49: =VLOOKUP('Gestão de Prazos'!$E49,Tabela6[],7,0) -> 0.0035 | V49: ='Gestão de Prazos'!$U49*'Gestão de Prazos'!$J49 -> 612.5 | Y49: 2549121282142338FALSO
B50: FALSE | C50: 25488 | D50: 212822 | E50: 42339 | F50: =IFERROR(VLOOKUP('Gestão de Prazos'!$E50,Tabela6[],2,0),"Cadastrar produto na aba (Cadastro de Produtos)") -> EXEMPLO 29 | G50: =IFERROR(VLOOKUP('Gestão de Prazos'!$E50,Tabela6[],6,0),"Cadastrar") -> 0 | H50: 2021-03-10 | I50: 175000 | J50: 175000 | K50: 250 | L50: =IFERROR('Gestão de Prazos'!$J117/'Gestão de Prazos'!$K117,"-") -> 350 | M50: 1000 | N50: =ROUNDUP('Gestão de Prazos'!$J50/'Gestão de Prazos'!$M50,0) -> 175 | O50: SP | P50: 2021-04-09 | S50: 2021-04-09 | U50: =VLOOKUP('Gestão de Prazos'!$E50,Tabela6[],7,0) -> 0.0035 | V50: ='Gestão de Prazos'!$U50*'Gestão de Prazos'!$J50 -> 612.5 | Y50: 2548821282242339FALSO
B51: FALSE | C51: 21408 | D51: 212259 | E51: 42369 | F51: =IFERROR(VLOOKUP('Gestão de Prazos'!$E51,Tabela6[],2,0),"Cadastrar produto na aba (Cadastro de Produtos)") -> EXEMPLO 12 | G51: =IFERROR(VLOOKUP('Gestão de Prazos'!$E51,Tabela6[],6,0),"Cadastrar") -> 0 | H51: 2021-03-08 | I51: 120000 | J51: 120000 | K51: 200 | L51: =IFERROR('Gestão de Prazos'!$J141/'Gestão de Prazos'!$K141,"-") -> - | M51: 5 | N51: =ROUNDUP('Gestão de Prazos'!$J51/'Gestão de Prazos'!$M51,0) -> 24000 | O51: RS | P51: 2021-04-09 | S51: 2021-04-09 | U51: =VLOOKUP('Gestão de Prazos'!$E51,Tabela6[],7,0) -> 0 | V51: ='Gestão de Prazos'!$U51*'Gestão de Prazos'!$J51 -> 0 | Y51: 2140821225942369FALSO
B52: FALSE | C52: 25426 | D52: 212387 | E52: 42369 | F52: =IFERROR(VLOOKUP('Gestão de Prazos'!$E52,Tabela6[],2,0),"Cadastrar produto na aba (Cadastro de Produtos)") -> EXEMPLO 12 | G52: =IFERROR(VLOOKUP('Gestão de Prazos'!$E52,Tabela6[],6,0),"Cadastrar") -> 0 | H52: 2021-03-09 | I52: 70000 | J52: 70000 | K52: 200 | L52: =IFERROR('Gestão de Prazos'!$J142/'Gestão de Prazos'!$K142,"-") -> 100 | M52: 5 | N52: =ROUNDUP('Gestão de Prazos'!$J52/'Gestão de Prazos'!$M52,0) -> 14000 | O52: RS | P52: 2021-04-09 | S52: 2021-04-09 | U52: =VLOOKUP('Gestão de Prazos'!$E52,Tabela6[],7,0) -> 0 | V52: ='Gestão de Prazos'!$U52*'Gestão de Prazos'!$J52 -> 0 | Y52: 2542621238742369FALSO
B53: FALSE | C53: 25408 | D53: 212259 | E53: 42369 | F53: =IFERROR(VLOOKUP('Gestão de Prazos'!$E53,Tabela6[],2,0),"Cadastrar produto na aba (Cadastro de Produtos)") -> EXEMPLO 12 | G53: =IFERROR(VLOOKUP('Gestão de Prazos'!$E53,Tabela6[],6,0),"Cadastrar") -> 0 | H53: 2021-03-08 | I53: 120000 | J53: 120000 | K53: 200 | L53: =IFERROR('Gestão de Prazos'!$J143/'Gestão de Prazos'!$K143,"-") -> - | M53: 5 | N53: =ROUNDUP('Gestão de Prazos'!$J53/'Gestão de Prazos'!$M53,0) -> 24000 | O53: RS | P53: 2021-04-09 | S53: 2021-04-09 | U53: =VLOOKUP('Gestão de Prazos'!$E53,Tabela6[],7,0) -> 0 | V53: ='Gestão de Prazos'!$U53*'Gestão de Prazos'!$J53 -> 0 | Y53: 2540821225942369FALSO
B54: FALSE | C54: 25427 | D54: 212248 | E54: 42368 | F54: =IFERROR(VLOOKUP('Gestão de Prazos'!$E54,Tabela6[],2,0),"Cadastrar produto na aba (Cadastro de Produtos)") -> EXEMPLO 11 | G54: =IFERROR(VLOOKUP('Gestão de Prazos'!$E54,Tabela6[],6,0),"Cadastrar") -> 0 | H54: 2021-03-08 | I54: 100000 | J54: 100000 | K54: 200 | L54: =IFERROR('Gestão de Prazos'!$J146/'Gestão de Prazos'!$K146,"-") -> 200 | M54: 5 | N54: =ROUNDUP('Gestão de Prazos'!$J54/'Gestão de Prazos'!$M54,0) -> 20000 | O54: RS | P54: 2021-04-09 | S54: 2021-04-09 | U54: =VLOOKUP('Gestão de Prazos'!$E54,Tabela6[],7,0) -> 0 | V54: ='Gestão de Prazos'!$U54*'Gestão de Prazos'!$J54 -> 0 | Y54: 2542721224842368FALSO
B55: FALSE | C55: 25481 | D55: 212887 | E55: 42368 | F55: =IFERROR(VLOOKUP('Gestão de Prazos'!$E55,Tabela6[],2,0),"Cadastrar produto na aba (Cadastro de Produtos)") -> EXEMPLO 11 | G55: =IFERROR(VLOOKUP('Gestão de Prazos'!$E55,Tabela6[],6,0),"Cadastrar") -> 0 | H55: 2021-03-12 | I55: 140000 | J55: 140000 | K55: 200 | L55: =IFERROR('Gestão de Prazos'!$J147/'Gestão de Prazos'!$K147,"-") -> 400 | M55: 5 | N55: =ROUNDUP('Gestão de Prazos'!$J55/'Gestão de Prazos'!$M55,0) -> 28000 | O55: RS | P55: 2021-04-09 | S55: 2021-04-09 | U55: =VLOOKUP('Gestão de Prazos'!$E55,Tabela6[],7,0) -> 0 | V55: ='Gestão de Prazos'!$U55*'Gestão de Prazos'!$J55 -> 0 | Y55: 2548121288742368FALSO
B56: FALSE | C56: 25428 | D56: 212270 | E56: 42367 | F56: =IFERROR(VLOOKUP('Gestão de Prazos'!$E56,Tabela6[],2,0),"Cadastrar produto na aba (Cadastro de Produtos)") -> EXEMPLO 10 | G56: =IFERROR(VLOOKUP('Gestão de Prazos'!$E56,Tabela6[],6,0),"Cadastrar") -> 0 | H56: 2021-03-08 | I56: 90000 | J56: 90000 | K56: 200 | L56: =IFERROR('Gestão de Prazos'!$J150/'Gestão de Prazos'!$K150,"-") -> - | M56: 5 | N56: =ROUNDUP('Gestão de Prazos'!$J56/'Gestão de Prazos'!$M56,0) -> 18000 | O56: RS | P56: 2021-04-09 | S56: 2021-04-09 | U56: =VLOOKUP('Gestão de Prazos'!$E56,Tabela6[],7,0) -> 0 | V56: ='Gestão de Prazos'!$U56*'Gestão de Prazos'!$J56 -> 0 | Y56: 2542821227042367FALSO
B57: FALSE | C57: 25480 | D57: 212887 | E57: 42367 | F57: =IFERROR(VLOOKUP('Gestão de Prazos'!$E57,Tabela6[],2,0),"Cadastrar produto na aba (Cadastro de Produtos)") -> EXEMPLO 10 | G57: =IFERROR(VLOOKUP('Gestão de Prazos'!$E57,Tabela6[],6,0),"Cadastrar") -> 0 | H57: 2021-03-12 | I57: 140000 | J57: 140000 | K57: 200 | L57: =IFERROR('Gestão de Prazos'!$J151/'Gestão de Prazos'!$K151,"-") -> - | M57: 5 | N57: =ROUNDUP('Gestão de Prazos'!$J57/'Gestão de Prazos'!$M57,0) -> 28000 | O57: RS | P57: 2021-04-09 | S57: 2021-04-09 | U57: =VLOOKUP('Gestão de Prazos'!$E57,Tabela6[],7,0) -> 0 | V57: ='Gestão de Prazos'!$U57*'Gestão de Prazos'!$J57 -> 0 | Y57: 2548021288742367FALSO
B58: FALSE | C58: 25495 | D58: 212742 | E58: 39227 | F58: =IFERROR(VLOOKUP('Gestão de Prazos'!$E58,Tabela6[],2,0),"Cadastrar produto na aba (Cadastro de Produtos)") -> EXEMPLO 49 | G58: =IFERROR(VLOOKUP('Gestão de Prazos'!$E58,Tabela6[],6,0),"Cadastrar") -> 0 | H58: 2021-03-11 | I58: 7380 | J58: 7380 | K58: - | L58: =IFERROR('Gestão de Prazos'!$J40/'Gestão de Prazos'!$K40,"-") -> - | M58: 20 | N58: =ROUNDUP('Gestão de Prazos'!$J58/'Gestão de Prazos'!$M58,0) -> 369 | O58: SP | P58: 2021-04-08 | S58: 2021-04-08 | U58: =VLOOKUP('Gestão de Prazos'!$E58,Tabela6[],7,0) -> 0.112 | V58: ='Gestão de Prazos'!$U58*'Gestão de Prazos'!$J58 -> 826.56 | Y58: 2549521274239227FALSO
B59: FALSE | C59: 24950 | D59: 208152 | E59: 23293 | F59: =IFERROR(VLOOKUP('Gestão de Prazos'!$E59,Tabela6[],2,0),"Cadastrar produto na aba (Cadastro de Produtos)") -> EXEMPLO 42 | G59: =IFERROR(VLOOKUP('Gestão de Prazos'!$E59,Tabela6[],6,0),"Cadastrar") -> 0 | H59: 2021-01-26 | I59: 1500 | J59: 1500 | K59: - | L59: =IFERROR('Gestão de Prazos'!$J66/'Gestão de Prazos'!$K66,"-") -> 200 | M59: 10 | N59: =ROUNDUP('Gestão de Prazos'!$J59/'Gestão de Prazos'!$M59,0) -> 150 | O59: RS | P59: 2021-04-08 | S59: 2021-04-08 | U59: =VLOOKUP('Gestão de Prazos'!$E59,Tabela6[],7,0) -> 0.195 | V59: ='Gestão de Prazos'!$U59*'Gestão de Prazos'!$J59 -> 292.5 | Y59: 2495020815223293FALSO
B60: FALSE | C60: 25443 | D60: 212456 | E60: 39810 | F60: =IFERROR(VLOOKUP('Gestão de Prazos'!$E60,Tabela6[],2,0),"Cadastrar produto na aba (Cadastro de Produtos)") -> EXEMPLO 21 | G60: =IFERROR(VLOOKUP('Gestão de Prazos'!$E60,Tabela6[],6,0),"Cadastrar") -> 0 | H60: 2021-03-10 | I60: 1200000 | J60: 1200000 | K60: - | L60: =IFERROR('Gestão de Prazos'!$J86/'Gestão de Prazos'!$K86,"-") -> - | M60: 2000 | N60: =ROUNDUP('Gestão de Prazos'!$J60/'Gestão de Prazos'!$M60,0) -> 600 | O60: RS | P60: 2021-04-07 | S60: 2021-04-07 | U60: =VLOOKUP('Gestão de Prazos'!$E60,Tabela6[],7,0) -> 0.0035 | V60: ='Gestão de Prazos'!$U60*'Gestão de Prazos'!$J60 -> 4200 | Y60: 2544321245639810FALSO
B61: FALSE | C61: 25442 | D61: 212455 | E61: 39814 | F61: =IFERROR(VLOOKUP('Gestão de Prazos'!$E61,Tabela6[],2,0),"Cadastrar produto na aba (Cadastro de Produtos)") -> EXEMPLO 25 | G61: =IFERROR(VLOOKUP('Gestão de Prazos'!$E61,Tabela6[],6,0),"Cadastrar") -> 0 | H61: 2021-03-10 | I61: 600000 | J61: 600000 | K61: - | L61: =IFERROR('Gestão de Prazos'!$J93/'Gestão de Prazos'!$K93,"-") -> 400 | M61: 1000 | N61: =ROUNDUP('Gestão de Prazos'!$J61/'Gestão de Prazos'!$M61,0) -> 600 | O61: RS | P61: 2021-04-07 | S61: 2021-04-07 | U61: =VLOOKUP('Gestão de Prazos'!$E61,Tabela6[],7,0) -> 0.0035 | V61: ='Gestão de Prazos'!$U61*'Gestão de Prazos'!$J61 -> 2100 | Y61: 2544221245539814FALSO
B62: FALSE | C62: 25154 | D62: 209965 | E62: 39225 | F62: =IFERROR(VLOOKUP('Gestão de Prazos'!$E62,Tabela6[],2,0),"Cadastrar produto na aba (Cadastro de Produtos)") -> EXEMPLO 48 | G62: =IFERROR(VLOOKUP('Gestão de Prazos'!$E62,Tabela6[],6,0),"Cadastrar") -> 0 | H62: 2021-02-12 | I62: 1480 | J62: 1480 | K62: - | L62: =IFERROR('Gestão de Prazos'!$J49/'Gestão de Prazos'!$K49,"-") -> 700 | M62: 20 | N62: =ROUNDUP('Gestão de Prazos'!$J62/'Gestão de Prazos'!$M62,0) -> 74 | O62: RS | P62: 2021-04-06 | S62: 2021-04-06 | U62: =VLOOKUP('Gestão de Prazos'!$E62,Tabela6[],7,0) -> 0.175 | V62: ='Gestão de Prazos'!$U62*'Gestão de Prazos'!$J62 -> 259 | Y62: 2515420996539225FALSO
B63: FALSE | C63: 25352 | D63: 211377 | E63: 42338 | F63: =IFERROR(VLOOKUP('Gestão de Prazos'!$E63,Tabela6[],2,0),"Cadastrar produto na aba (Cadastro de Produtos)") -> EXEMPLO 28 | G63: =IFERROR(VLOOKUP('Gestão de Prazos'!$E63,Tabela6[],6,0),"Cadastrar") -> 0 | H63: 2021-03-02 | I63: 75000 | J63: 75000 | K63: 250 | L63: =IFERROR('Gestão de Prazos'!$J108/'Gestão de Prazos'!$K108,"-") -> - | M63: 1000 | N63: =ROUNDUP('Gestão de Prazos'!$J63/'Gestão de Prazos'!$M63,0) -> 75 | O63: SP | P63: 2021-04-05 | S63: 2021-04-05 | U63: =VLOOKUP('Gestão de Prazos'!$E63,Tabela6[],7,0) -> 0.0035 | V63: ='Gestão de Prazos'!$U63*'Gestão de Prazos'!$J63 -> 262.5 | Y63: 2535221137742338FALSO
B64: FALSE | C64: 25350 | D64: 211374 | E64: 42339 | F64: =IFERROR(VLOOKUP('Gestão de Prazos'!$E64,Tabela6[],2,0),"Cadastrar produto na aba (Cadastro de Produtos)") -> EXEMPLO 29 | G64: =IFERROR(VLOOKUP('Gestão de Prazos'!$E64,Tabela6[],6,0),"Cadastrar") -> 0 | H64: 2021-03-02 | I64: 75000 | J64: 75000 | K64: 250 | L64: =IFERROR('Gestão de Prazos'!$J116/'Gestão de Prazos'!$K116,"-") -> 200 | M64: 1000 | N64: =ROUNDUP('Gestão de Prazos'!$J64/'Gestão de Prazos'!$M64,0) -> 75 | O64: SP | P64: 2021-04-05 | S64: 2021-04-05 | U64: =VLOOKUP('Gestão de Prazos'!$E64,Tabela6[],7,0) -> 0.0035 | V64: ='Gestão de Prazos'!$U64*'Gestão de Prazos'!$J64 -> 262.5 | Y64: 2535021137442339FALSO
B65: FALSE | C65: 25147 | D65: 210139 | E65: 33470 | F65: =IFERROR(VLOOKUP('Gestão de Prazos'!$E65,Tabela6[],2,0),"Cadastrar produto na aba (Cadastro de Produtos)") -> EXEMPLO 4 | G65: =IFERROR(VLOOKUP('Gestão de Prazos'!$E65,Tabela6[],6,0),"Cadastrar") -> 0 | H65: 2021-02-12 | I65: 60000 | J65: 60000 | K65: 200 | L65: =IFERROR('Gestão de Prazos'!$J125/'Gestão de Prazos'!$K125,"-") -> 150 | M65: 5 | N65: =ROUNDUP('Gestão de Prazos'!$J65/'Gestão de Prazos'!$M65,0) -> 12000 | O65: RS | P65: 2021-04-05 | S65: 2021-04-05 | U65: =VLOOKUP('Gestão de Prazos'!$E65,Tabela6[],7,0) -> 0 | V65: ='Gestão de Prazos'!$U65*'Gestão de Prazos'!$J65 -> 0 | Y65: 2514721013933470FALSO
B66: FALSE | C66: 25105 | D66: 209679 | E66: 33489 | F66: =IFERROR(VLOOKUP('Gestão de Prazos'!$E66,Tabela6[],2,0),"Cadastrar produto na aba (Cadastro de Produtos)") -> EXEMPLO 7 | G66: =IFERROR(VLOOKUP('Gestão de Prazos'!$E66,Tabela6[],6,0),"Cadastrar") -> 0 | H66: 2021-02-08 | I66: 40000 | J66: 40000 | K66: 200 | L66: =IFERROR('Gestão de Prazos'!$J133/'Gestão de Prazos'!$K133,"-") -> - | M66: 5 | N66: =ROUNDUP('Gestão de Prazos'!$J66/'Gestão de Prazos'!$M66,0) -> 8000 | O66: RS | P66: 2021-04-05 | S66: 2021-04-05 | U66: =VLOOKUP('Gestão de Prazos'!$E66,Tabela6[],7,0) -> 0 | V66: ='Gestão de Prazos'!$U66*'Gestão de Prazos'!$J66 -> 0 | Y66: 2510520967933489FALSO
B67: FALSE | C67: 24951 | D67: 208149 | E67: 39227 | F67: =IFERROR(VLOOKUP('Gestão de Prazos'!$E67,Tabela6[],2,0),"Cadastrar produto na aba (Cadastro de Produtos)") -> EXEMPLO 49 | G67: =IFERROR(VLOOKUP('Gestão de Prazos'!$E67,Tabela6[],6,0),"Cadastrar") -> 0 | H67: 2021-01-26 | I67: 2000 | J67: 2000 | K67: - | L67: =IFERROR('Gestão de Prazos'!$J34/'Gestão de Prazos'!$K34,"-") -> - | M67: 20 | N67: =ROUNDUP('Gestão de Prazos'!$J67/'Gestão de Prazos'!$M67,0) -> 100 | O67: RS | P67: 2021-03-26 | S67: 2021-03-26 | U67: =VLOOKUP('Gestão de Prazos'!$E67,Tabela6[],7,0) -> 0.112 | V67: ='Gestão de Prazos'!$U67*'Gestão de Prazos'!$J67 -> 224 | Y67: 2495120814939227FALSO
B68: FALSE | C68: 25693 | D68: 212736 | E68: 7961 | F68: =IFERROR(VLOOKUP('Gestão de Prazos'!$E68,Tabela6[],2,0),"Cadastrar produto na aba (Cadastro de Produtos)") -> EXEMPLO 31 | G68: =IFERROR(VLOOKUP('Gestão de Prazos'!$E68,Tabela6[],6,0),"Cadastrar") -> 0 | H68: - | I68: 27000 | J68: 27000 | K68: 3000 | L68: =IFERROR('Gestão de Prazos'!$J15/'Gestão de Prazos'!$K15,"-") -> - | M68: 3000 | N68: =ROUNDUP('Gestão de Prazos'!$J68/'Gestão de Prazos'!$M68,0) -> 9 | O68: SP | P68: 2021-03-26 | S68: 2021-03-26 | U68: =VLOOKUP('Gestão de Prazos'!$E68,Tabela6[],7,0) -> 0.0045 | V68: ='Gestão de Prazos'!$U68*'Gestão de Prazos'!$J68 -> 121.5 | Y68: 256932127367961FALSO
B69: FALSE | C69: 25477 | D69: 212736 | E69: 39227 | F69: =IFERROR(VLOOKUP('Gestão de Prazos'!$E69,Tabela6[],2,0),"Cadastrar produto na aba (Cadastro de Produtos)") -> EXEMPLO 49 | G69: =IFERROR(VLOOKUP('Gestão de Prazos'!$E69,Tabela6[],6,0),"Cadastrar") -> 0 | H69: 2021-03-11 | I69: 6940 | J69: 6940 | K69: - | L69: =IFERROR('Gestão de Prazos'!$J42/'Gestão de Prazos'!$K42,"-") -> 100 | M69: 20 | N69: =ROUNDUP('Gestão de Prazos'!$J69/'Gestão de Prazos'!$M69,0) -> 347 | O69: SP | P69: 2021-03-26 | S69: 2021-03-26 | U69: =VLOOKUP('Gestão de Prazos'!$E69,Tabela6[],7,0) -> 0.112 | V69: ='Gestão de Prazos'!$U69*'Gestão de Prazos'!$J69 -> 777.28 | Y69: 2547721273639227FALSO
B70: FALSE | C70: 25202 | D70: 210390 | E70: 39227 | F70: =IFERROR(VLOOKUP('Gestão de Prazos'!$E70,Tabela6[],2,0),"Cadastrar produto na aba (Cadastro de Produtos)") -> EXEMPLO 49 | G70: =IFERROR(VLOOKUP('Gestão de Prazos'!$E70,Tabela6[],6,0),"Cadastrar") -> 0 | H70: 2021-02-19 | I70: 8000 | J70: 8000 | K70: - | L70: =IFERROR('Gestão de Prazos'!$J36/'Gestão de Prazos'!$K36,"-") -> - | M70: 20 | N70: =ROUNDUP('Gestão de Prazos'!$J70/'Gestão de Prazos'!$M70,0) -> 400 | O70: SP | P70: 2021-03-25 | S70: 2021-03-25 | U70: =VLOOKUP('Gestão de Prazos'!$E70,Tabela6[],7,0) -> 0.112 | V70: ='Gestão de Prazos'!$U70*'Gestão de Prazos'!$J70 -> 896 | Y70: 2520221039039227FALSO
B71: FALSE | C71: 25241 | D71: 210777 | E71: 39227 | F71: =IFERROR(VLOOKUP('Gestão de Prazos'!$E71,Tabela6[],2,0),"Cadastrar produto na aba (Cadastro de Produtos)") -> EXEMPLO 49 | G71: =IFERROR(VLOOKUP('Gestão de Prazos'!$E71,Tabela6[],6,0),"Cadastrar") -> 0 | H71: 2021-02-19 | I71: 6000 | J71: 6000 | K71: - | L71: =IFERROR('Gestão de Prazos'!$J37/'Gestão de Prazos'!$K37,"-") -> - | M71: 20 | N71: =ROUNDUP('Gestão de Prazos'!$J71/'Gestão de Prazos'!$M71,0) -> 300 | O71: SP | P71: 2021-03-25 | S71: 2021-03-25 | U71: =VLOOKUP('Gestão de Prazos'!$E71,Tabela6[],7,0) -> 0.112 | V71: ='Gestão de Prazos'!$U71*'Gestão de Prazos'!$J71 -> 672 | Y71: 2524121077739227FALSO
B72: FALSE | C72: 25201 | D72: 210390 | E72: 39225 | F72: =IFERROR(VLOOKUP('Gestão de Prazos'!$E72,Tabela6[],2,0),"Cadastrar produto na aba (Cadastro de Produtos)") -> EXEMPLO 48 | G72: =IFERROR(VLOOKUP('Gestão de Prazos'!$E72,Tabela6[],6,0),"Cadastrar") -> 0 | H72: - | I72: 4000 | J72: 4000 | K72: - | L72: =IFERROR('Gestão de Prazos'!$J50/'Gestão de Prazos'!$K50,"-") -> 700 | M72: 20 | N72: =ROUNDUP('Gestão de Prazos'!$J72/'Gestão de Prazos'!$M72,0) -> 200 | O72: SP | P72: 2021-03-25 | S72: 2021-03-25 | U72: =VLOOKUP('Gestão de Prazos'!$E72,Tabela6[],7,0) -> 0.175 | V72: ='Gestão de Prazos'!$U72*'Gestão de Prazos'!$J72 -> 700 | Y72: 2520121039039225FALSO
B73: FALSE | C73: 25240 | D73: 210777 | E73: 39225 | F73: =IFERROR(VLOOKUP('Gestão de Prazos'!$E73,Tabela6[],2,0),"Cadastrar produto na aba (Cadastro de Produtos)") -> EXEMPLO 48 | G73: =IFERROR(VLOOKUP('Gestão de Prazos'!$E73,Tabela6[],6,0),"Cadastrar") -> 0 | H73: - | I73: 2860 | J73: 2860 | K73: - | L73: =IFERROR('Gestão de Prazos'!$J51/'Gestão de Prazos'!$K51,"-") -> 600 | M73: 20 | N73: =ROUNDUP('Gestão de Prazos'!$J73/'Gestão de Prazos'!$M73,0) -> 143 | O73: SP | P73: 2021-03-25 | S73: 2021-03-25 | U73: =VLOOKUP('Gestão de Prazos'!$E73,Tabela6[],7,0) -> 0.175 | V73: ='Gestão de Prazos'!$U73*'Gestão de Prazos'!$J73 -> 500.5 | Y73: 2524021077739225FALSO
B74: FALSE | C74: 25351 | D74: 211377 | E74: 42338 | F74: =IFERROR(VLOOKUP('Gestão de Prazos'!$E74,Tabela6[],2,0),"Cadastrar produto na aba (Cadastro de Produtos)") -> EXEMPLO 28 | G74: =IFERROR(VLOOKUP('Gestão de Prazos'!$E74,Tabela6[],6,0),"Cadastrar") -> 0 | H74: 2021-03-02 | I74: 25000 | J74: 25000 | K74: 250 | L74: =IFERROR('Gestão de Prazos'!$J107/'Gestão de Prazos'!$K107,"-") -> - | M74: 1000 | N74: =ROUNDUP('Gestão de Prazos'!$J74/'Gestão de Prazos'!$M74,0) -> 25 | O74: SP | P74: 2021-03-22 | S74: 2021-03-22 | U74: =VLOOKUP('Gestão de Prazos'!$E74,Tabela6[],7,0) -> 0.0035 | V74: ='Gestão de Prazos'!$U74*'Gestão de Prazos'!$J74 -> 87.5 | Y74: 2535121137742338FALSO
B75: FALSE | C75: 25349 | D75: 211372 | E75: 42339 | F75: =IFERROR(VLOOKUP('Gestão de Prazos'!$E75,Tabela6[],2,0),"Cadastrar produto na aba (Cadastro de Produtos)") -> EXEMPLO 29 | G75: =IFERROR(VLOOKUP('Gestão de Prazos'!$E75,Tabela6[],6,0),"Cadastrar") -> 0 | H75: 2021-03-02 | I75: 70250 | J75: 70250 | K75: 250 | L75: =IFERROR('Gestão de Prazos'!$J115/'Gestão de Prazos'!$K115,"-") -> 400 | M75: 1000 | N75: =ROUNDUP('Gestão de Prazos'!$J75/'Gestão de Prazos'!$M75,0) -> 71 | O75: SP | P75: 2021-03-22 | S75: 2021-03-22 | U75: =VLOOKUP('Gestão de Prazos'!$E75,Tabela6[],7,0) -> 0.0035 | V75: ='Gestão de Prazos'!$U75*'Gestão de Prazos'!$J75 -> 245.875 | Y75: 2534921137242339FALSO
B76: FALSE | C76: 25204 | D76: 210400 | E76: 36689 | F76: =IFERROR(VLOOKUP('Gestão de Prazos'!$E76,Tabela6[],2,0),"Cadastrar produto na aba (Cadastro de Produtos)") -> EXEMPLO 35 | G76: =IFERROR(VLOOKUP('Gestão de Prazos'!$E76,Tabela6[],6,0),"Cadastrar") -> 0 | H76: 2021-02-19 | I76: 10000 | J76: 10000 | K76: - | L76: =IFERROR('Gestão de Prazos'!$J14/'Gestão de Prazos'!$K14,"-") -> - | M76: 2000 | N76: =ROUNDUP('Gestão de Prazos'!$J76/'Gestão de Prazos'!$M76,0) -> 5 | O76: SP | P76: 2021-03-15 | S76: 2021-03-15 | U76: =VLOOKUP('Gestão de Prazos'!$E76,Tabela6[],7,0) -> 0.007 | V76: ='Gestão de Prazos'!$U76*'Gestão de Prazos'!$J76 -> 70 | Y76: 2520421040036689FALSO
B77: FALSE | C77: 25203 | D77: 210400 | E77: 12654 | F77: =IFERROR(VLOOKUP('Gestão de Prazos'!$E77,Tabela6[],2,0),"Cadastrar produto na aba (Cadastro de Produtos)") -> EXEMPLO 32 | G77: =IFERROR(VLOOKUP('Gestão de Prazos'!$E77,Tabela6[],6,0),"Cadastrar") -> 0 | H77: 2021-02-19 | I77: 141000 | J77: 141000 | K77: - | L77: =IFERROR('Gestão de Prazos'!$J18/'Gestão de Prazos'!$K18,"-") -> - | M77: 3000 | N77: =ROUNDUP('Gestão de Prazos'!$J77/'Gestão de Prazos'!$M77,0) -> 47 | O77: SP | P77: 2021-03-15 | S77: 2021-03-15 | U77: =VLOOKUP('Gestão de Prazos'!$E77,Tabela6[],7,0) -> 0.0045 | V77: ='Gestão de Prazos'!$U77*'Gestão de Prazos'!$J77 -> 634.5 | Y77: 2520321040012654FALSO
B78: FALSE | C78: 25205 | D78: 210385 | E78: 36693 | F78: =IFERROR(VLOOKUP('Gestão de Prazos'!$E78,Tabela6[],2,0),"Cadastrar produto na aba (Cadastro de Produtos)") -> EXEMPLO 36 | G78: =IFERROR(VLOOKUP('Gestão de Prazos'!$E78,Tabela6[],6,0),"Cadastrar") -> 0 | H78: 2021-02-19 | I78: 150000 | J78: 150000 | K78: - | L78: =IFERROR('Gestão de Prazos'!$J21/'Gestão de Prazos'!$K21,"-") -> - | M78: 1500 | N78: =ROUNDUP('Gestão de Prazos'!$J78/'Gestão de Prazos'!$M78,0) -> 100 | O78: SP | P78: 2021-03-15 | S78: 2021-03-15 | U78: =VLOOKUP('Gestão de Prazos'!$E78,Tabela6[],7,0) -> 0.0045 | V78: ='Gestão de Prazos'!$U78*'Gestão de Prazos'!$J78 -> 675 | Y78: 2520521038536693FALSO
B79: FALSE | C79: 25148 | D79: 209908 | E79: 42541 | F79: =IFERROR(VLOOKUP('Gestão de Prazos'!$E79,Tabela6[],2,0),"Cadastrar produto na aba (Cadastro de Produtos)") -> EXEMPLO 40 | G79: =IFERROR(VLOOKUP('Gestão de Prazos'!$E79,Tabela6[],6,0),"Cadastrar") -> 0 | H79: 2021-01-12 | I79: 155000 | J79: 155000 | K79: 25 | L79: =IFERROR('Gestão de Prazos'!$J22/'Gestão de Prazos'!$K22,"-") -> - | M79: 40 | N79: =ROUNDUP('Gestão de Prazos'!$J79/'Gestão de Prazos'!$M79,0) -> 3875 | O79: SP | P79: 2021-03-15 | S79: 2021-03-15 | U79: =VLOOKUP('Gestão de Prazos'!$E79,Tabela6[],7,0) -> 0.0045 | V79: ='Gestão de Prazos'!$U79*'Gestão de Prazos'!$J79 -> 697.5 | Y79: =CONCATENATE($C79,$D79,$E79,$B79) -> 2514820990842541FALSO
B80: FALSE | C80: 24764 | D80: 206089 | E80: 39227 | F80: =IFERROR(VLOOKUP('Gestão de Prazos'!$E80,Tabela6[],2,0),"Cadastrar produto na aba (Cadastro de Produtos)") -> EXEMPLO 49 | G80: =IFERROR(VLOOKUP('Gestão de Prazos'!$E80,Tabela6[],6,0),"Cadastrar") -> 0 | H80: 1909-11-08 | I80: 3600 | J80: 3600 | K80: - | L80: =IFERROR('Gestão de Prazos'!$J32/'Gestão de Prazos'!$K32,"-") -> - | M80: 20 | N80: =ROUNDUP('Gestão de Prazos'!$J80/'Gestão de Prazos'!$M80,0) -> 180 | O80: SP | P80: 2021-03-15 | S80: 2021-03-15 | U80: =VLOOKUP('Gestão de Prazos'!$E80,Tabela6[],7,0) -> 0.112 | V80: ='Gestão de Prazos'!$U80*'Gestão de Prazos'!$J80 -> 403.2 | Y80: 2476420608939227FALSO
B81: FALSE | C81: 24765 | D81: 206103 | E81: 39227 | F81: =IFERROR(VLOOKUP('Gestão de Prazos'!$E81,Tabela6[],2,0),"Cadastrar produto na aba (Cadastro de Produtos)") -> EXEMPLO 49 | G81: =IFERROR(VLOOKUP('Gestão de Prazos'!$E81,Tabela6[],6,0),"Cadastrar") -> 0 | H81: 2021-01-06 | I81: 2000 | J81: 2000 | K81: - | L81: =IFERROR('Gestão de Prazos'!$J33/'Gestão de Prazos'!$K33,"-") -> - | M81: 20 | N81: =ROUNDUP('Gestão de Prazos'!$J81/'Gestão de Prazos'!$M81,0) -> 100 | O81: SP | P81: 2021-03-15 | S81: 2021-03-15 | U81: =VLOOKUP('Gestão de Prazos'!$E81,Tabela6[],7,0) -> 0.112 | V81: ='Gestão de Prazos'!$U81*'Gestão de Prazos'!$J81 -> 224 | Y81: 2476520610339227FALSO
B82: FALSE | C82: 24767 | D82: 206089 | E82: 39142 | F82: =IFERROR(VLOOKUP('Gestão de Prazos'!$E82,Tabela6[],2,0),"Cadastrar produto na aba (Cadastro de Produtos)") -> EXEMPLO 47 | G82: =IFERROR(VLOOKUP('Gestão de Prazos'!$E82,Tabela6[],6,0),"Cadastrar") -> 0 | H82: 2021-01-06 | I82: 1880 | J82: 1880 | K82: - | L82: =IFERROR('Gestão de Prazos'!$J43/'Gestão de Prazos'!$K43,"-") -> - | M82: 20 | N82: =ROUNDUP('Gestão de Prazos'!$J82/'Gestão de Prazos'!$M82,0) -> 94 | O82: SP | P82: 2021-03-15 | S82: 2021-03-15 | U82: =VLOOKUP('Gestão de Prazos'!$E82,Tabela6[],7,0) -> 0.112 | V82: ='Gestão de Prazos'!$U82*'Gestão de Prazos'!$J82 -> 210.56 | Y82: 2476720608939142FALSO
B83: FALSE | C83: 25310 | D83: 209452 | E83: 39142 | F83: =IFERROR(VLOOKUP('Gestão de Prazos'!$E83,Tabela6[],2,0),"Cadastrar produto na aba (Cadastro de Produtos)") -> EXEMPLO 47 | G83: =IFERROR(VLOOKUP('Gestão de Prazos'!$E83,Tabela6[],6,0),"Cadastrar") -> 0 | H83: 2021-02-08 | I83: 8600 | J83: 8600 | K83: - | L83: =IFERROR('Gestão de Prazos'!$J44/'Gestão de Prazos'!$K44,"-") -> - | M83: 20 | N83: =ROUNDUP('Gestão de Prazos'!$J83/'Gestão de Prazos'!$M83,0) -> 430 | O83: SP | P83: 2021-03-15 | S83: 2021-03-15 | U83: =VLOOKUP('Gestão de Prazos'!$E83,Tabela6[],7,0) -> 0.112 | V83: ='Gestão de Prazos'!$U83*'Gestão de Prazos'!$J83 -> 963.2 | Y83: 2531020945239142FALSO
B84: FALSE | C84: 25378 | D84: 210390 | E84: 39231 | F84: =IFERROR(VLOOKUP('Gestão de Prazos'!$E84,Tabela6[],2,0),"Cadastrar produto na aba (Cadastro de Produtos)") -> EXEMPLO 53 | G84: =IFERROR(VLOOKUP('Gestão de Prazos'!$E84,Tabela6[],6,0),"Cadastrar") -> 0 | H84: - | I84: 3000 | J84: 3000 | K84: - | L84: =IFERROR('Gestão de Prazos'!$J55/'Gestão de Prazos'!$K55,"-") -> 700 | M84: 30 | N84: =ROUNDUP('Gestão de Prazos'!$J84/'Gestão de Prazos'!$M84,0) -> 100 | O84: SP | P84: 2021-03-15 | S84: 2021-03-15 | U84: =VLOOKUP('Gestão de Prazos'!$E84,Tabela6[],7,0) -> 0.112 | V84: ='Gestão de Prazos'!$U84*'Gestão de Prazos'!$J84 -> 336 | Y84: 2537821039039231FALSO
B85: FALSE | C85: 25380 | D85: 210400 | E85: 39231 | F85: =IFERROR(VLOOKUP('Gestão de Prazos'!$E85,Tabela6[],2,0),"Cadastrar produto na aba (Cadastro de Produtos)") -> EXEMPLO 53 | G85: =IFERROR(VLOOKUP('Gestão de Prazos'!$E85,Tabela6[],6,0),"Cadastrar") -> 0 | H85: - | I85: 600 | J85: 600 | K85: - | L85: =IFERROR('Gestão de Prazos'!$J56/'Gestão de Prazos'!$K56,"-") -> 450 | M85: 30 | N85: =ROUNDUP('Gestão de Prazos'!$J85/'Gestão de Prazos'!$M85,0) -> 20 | O85: SP | P85: 2021-03-15 | S85: 2021-03-15 | U85: =VLOOKUP('Gestão de Prazos'!$E85,Tabela6[],7,0) -> 0.112 | V85: ='Gestão de Prazos'!$U85*'Gestão de Prazos'!$J85 -> 67.2 | Y85: 2538021040039231FALSO
B86: FALSE | C86: 25381 | D86: 210772 | E86: 39231 | F86: =IFERROR(VLOOKUP('Gestão de Prazos'!$E86,Tabela6[],2,0),"Cadastrar produto na aba (Cadastro de Produtos)") -> EXEMPLO 53 | G86: =IFERROR(VLOOKUP('Gestão de Prazos'!$E86,Tabela6[],6,0),"Cadastrar") -> 0 | H86: - | I86: 750 | J86: 750 | K86: - | L86: =IFERROR('Gestão de Prazos'!$J57/'Gestão de Prazos'!$K57,"-") -> 700 | M86: 30 | N86: =ROUNDUP('Gestão de Prazos'!$J86/'Gestão de Prazos'!$M86,0) -> 25 | O86: RS | P86: 2021-03-15 | S86: 2021-03-15 | U86: =VLOOKUP('Gestão de Prazos'!$E86,Tabela6[],7,0) -> 0.112 | V86: ='Gestão de Prazos'!$U86*'Gestão de Prazos'!$J86 -> 84 | Y86: 2538121077239231FALSO
B87: FALSE | C87: 24768 | D87: 206103 | E87: 39140 | F87: =IFERROR(VLOOKUP('Gestão de Prazos'!$E87,Tabela6[],2,0),"Cadastrar produto na aba (Cadastro de Produtos)") -> EXEMPLO 45 | G87: =IFERROR(VLOOKUP('Gestão de Prazos'!$E87,Tabela6[],6,0),"Cadastrar") -> 0 | H87: 2021-01-06 | I87: 20000 | J87: 20000 | K87: - | L87: =IFERROR('Gestão de Prazos'!$J61/'Gestão de Prazos'!$K61,"-") -> - | M87: 20 | N87: =ROUNDUP('Gestão de Prazos'!$J87/'Gestão de Prazos'!$M87,0) -> 1000 | O87: SP | P87: 2021-03-15 | S87: 2021-03-15 | U87: =VLOOKUP('Gestão de Prazos'!$E87,Tabela6[],7,0) -> 0.265 | V87: ='Gestão de Prazos'!$U87*'Gestão de Prazos'!$J87 -> 5300 | Y87: 2476820610339140FALSO
B88: FALSE | C88: 25311 | D88: 209452 | E88: 39141 | F88: =IFERROR(VLOOKUP('Gestão de Prazos'!$E88,Tabela6[],2,0),"Cadastrar produto na aba (Cadastro de Produtos)") -> EXEMPLO 46 | G88: =IFERROR(VLOOKUP('Gestão de Prazos'!$E88,Tabela6[],6,0),"Cadastrar") -> 0 | H88: 2021-02-08 | I88: 1000 | J88: 1000 | K88: - | L88: =IFERROR('Gestão de Prazos'!$J62/'Gestão de Prazos'!$K62,"-") -> - | M88: 20 | N88: =ROUNDUP('Gestão de Prazos'!$J88/'Gestão de Prazos'!$M88,0) -> 50 | O88: SP | P88: 2021-03-15 | S88: 2021-03-15 | U88: =VLOOKUP('Gestão de Prazos'!$E88,Tabela6[],7,0) -> Pesar | V88: ='Gestão de Prazos'!$U88*'Gestão de Prazos'!$J88 ->  | Y88: 2531120945239141FALSO
B89: FALSE | C89: 24458 | D89: 204412 | E89: 36686 | F89: =IFERROR(VLOOKUP('Gestão de Prazos'!$E89,Tabela6[],2,0),"Cadastrar produto na aba (Cadastro de Produtos)") -> EXEMPLO 34 | G89: =IFERROR(VLOOKUP('Gestão de Prazos'!$E89,Tabela6[],6,0),"Cadastrar") -> 0 | H89: 2020-12-16 | I89: 100000 | J89: 100000 | K89: - | L89: =IFERROR('Gestão de Prazos'!$J20/'Gestão de Prazos'!$K20,"-") -> - | M89: 2000 | N89: =ROUNDUP('Gestão de Prazos'!$J89/'Gestão de Prazos'!$M89,0) -> 50 | O89: RS | P89: 2021-03-10 | S89: 2021-03-10 | U89: =VLOOKUP('Gestão de Prazos'!$E89,Tabela6[],7,0) -> 0.0045 | V89: ='Gestão de Prazos'!$U89*'Gestão de Prazos'!$J89 -> 450 | Y89: 2445820441236686FALSO
B90: FALSE | C90: 24457 | D90: 204412 | E90: 23293 | F90: =IFERROR(VLOOKUP('Gestão de Prazos'!$E90,Tabela6[],2,0),"Cadastrar produto na aba (Cadastro de Produtos)") -> EXEMPLO 42 | G90: =IFERROR(VLOOKUP('Gestão de Prazos'!$E90,Tabela6[],6,0),"Cadastrar") -> 0 | H90: 2020-12-16 | I90: 1220 | J90: 1220 | K90: - | L90: =IFERROR('Gestão de Prazos'!$J65/'Gestão de Prazos'!$K65,"-") -> 300 | M90: 10 | N90: =ROUNDUP('Gestão de Prazos'!$J90/'Gestão de Prazos'!$M90,0) -> 122 | O90: RS | P90: 2021-03-10 | S90: 2021-03-10 | U90: =VLOOKUP('Gestão de Prazos'!$E90,Tabela6[],7,0) -> 0.195 | V90: ='Gestão de Prazos'!$U90*'Gestão de Prazos'!$J90 -> 237.9 | Y90: 2445720441223293FALSO
B91: FALSE | C91: 25149 | D91: 209993 | E91: 42367 | F91: =IFERROR(VLOOKUP('Gestão de Prazos'!$E91,Tabela6[],2,0),"Cadastrar produto na aba (Cadastro de Produtos)") -> EXEMPLO 10 | G91: =IFERROR(VLOOKUP('Gestão de Prazos'!$E91,Tabela6[],6,0),"Cadastrar") -> 0 | H91: 2021-01-12 | I91: 30000 | J91: 30000 | K91: 200 | L91: =IFERROR('Gestão de Prazos'!$J149/'Gestão de Prazos'!$K149,"-") -> - | M91: 5 | N91: =ROUNDUP('Gestão de Prazos'!$J91/'Gestão de Prazos'!$M91,0) -> 6000 | O91: RS | P91: 2021-03-08 | S91: 2021-03-08 | U91: =VLOOKUP('Gestão de Prazos'!$E91,Tabela6[],7,0) -> 0 | V91: ='Gestão de Prazos'!$U91*'Gestão de Prazos'!$J91 -> 0 | Y91: 2514920999342367FALSO
B92: FALSE | C92: 24706 | D92: 206230 | E92: 33470 | F92: =IFERROR(VLOOKUP('Gestão de Prazos'!$E92,Tabela6[],2,0),"Cadastrar produto na aba (Cadastro de Produtos)") -> EXEMPLO 4 | G92: =IFERROR(VLOOKUP('Gestão de Prazos'!$E92,Tabela6[],6,0),"Cadastrar") -> 0 | H92: 2021-01-06 | I92: 70000 | J92: 70000 | K92: 200 | L92: =IFERROR('Gestão de Prazos'!$J124/'Gestão de Prazos'!$K124,"-") -> 400 | M92: 5 | N92: =ROUNDUP('Gestão de Prazos'!$J92/'Gestão de Prazos'!$M92,0) -> 14000 | O92: RS | P92: 2021-03-05 | S92: 2021-03-05 | U92: =VLOOKUP('Gestão de Prazos'!$E92,Tabela6[],7,0) -> 0 | V92: ='Gestão de Prazos'!$U92*'Gestão de Prazos'!$J92 -> 0 | Y92: 2470620623033470FALSO
B93: FALSE | C93: 24708 | D93: 206338 | E93: 33487 | F93: =IFERROR(VLOOKUP('Gestão de Prazos'!$E93,Tabela6[],2,0),"Cadastrar produto na aba (Cadastro de Produtos)") -> EXEMPLO 5 | G93: =IFERROR(VLOOKUP('Gestão de Prazos'!$E93,Tabela6[],6,0),"Cadastrar") -> 0 | H93: 2021-01-06 | I93: 80000 | J93: 80000 | K93: 200 | L93: =IFERROR('Gestão de Prazos'!$J129/'Gestão de Prazos'!$K129,"-") -> - | M93: 5 | N93: =ROUNDUP('Gestão de Prazos'!$J93/'Gestão de Prazos'!$M93,0) -> 16000 | O93: RS | P93: 2021-03-05 | S93: 2021-03-05 | U93: =VLOOKUP('Gestão de Prazos'!$E93,Tabela6[],7,0) -> 0 | V93: ='Gestão de Prazos'!$U93*'Gestão de Prazos'!$J93 -> 0 | Y93: 2470820633833487FALSO
B94: FALSE | C94: 24709 | D94: 206292 | E94: 33489 | F94: =IFERROR(VLOOKUP('Gestão de Prazos'!$E94,Tabela6[],2,0),"Cadastrar produto na aba (Cadastro de Produtos)") -> EXEMPLO 7 | G94: =IFERROR(VLOOKUP('Gestão de Prazos'!$E94,Tabela6[],6,0),"Cadastrar") -> 0 | H94: 2021-01-06 | I94: 40000 | J94: 40000 | K94: 200 | L94: =IFERROR('Gestão de Prazos'!$J132/'Gestão de Prazos'!$K132,"-") -> - | M94: 5 | N94: =ROUNDUP('Gestão de Prazos'!$J94/'Gestão de Prazos'!$M94,0) -> 8000 | O94: RS | P94: 2021-03-05 | S94: 2021-03-05 | U94: =VLOOKUP('Gestão de Prazos'!$E94,Tabela6[],7,0) -> 0 | V94: ='Gestão de Prazos'!$U94*'Gestão de Prazos'!$J94 -> 0 | Y94: 2470920629233489FALSO
B95: FALSE | C95: 24707 | D95: 206258 | E95: 33468 | F95: =IFERROR(VLOOKUP('Gestão de Prazos'!$E95,Tabela6[],2,0),"Cadastrar produto na aba (Cadastro de Produtos)") -> Exemplo 2 | G95: =IFERROR(VLOOKUP('Gestão de Prazos'!$E95,Tabela6[],6,0),"Cadastrar") -> 0 | H95: 2021-01-06 | I95: 70000 | J95: 70000 | K95: 200 | L95: =IFERROR('Gestão de Prazos'!$J137/'Gestão de Prazos'!$K137,"-") -> - | M95: 5 | N95: =ROUNDUP('Gestão de Prazos'!$J95/'Gestão de Prazos'!$M95,0) -> 14000 | O95: RS | P95: 2021-03-05 | S95: 2021-03-05 | U95: =VLOOKUP('Gestão de Prazos'!$E95,Tabela6[],7,0) -> 0 | V95: ='Gestão de Prazos'!$U95*'Gestão de Prazos'!$J95 -> 0 | Y95: 2470720625833468FALSO
B96: FALSE | C96: 24716 | D96: 206333 | E96: 42369 | F96: =IFERROR(VLOOKUP('Gestão de Prazos'!$E96,Tabela6[],2,0),"Cadastrar produto na aba (Cadastro de Produtos)") -> EXEMPLO 12 | G96: =IFERROR(VLOOKUP('Gestão de Prazos'!$E96,Tabela6[],6,0),"Cadastrar") -> 0 | H96: 2021-01-06 | I96: 20000 | J96: 20000 | K96: 200 | L96: =IFERROR('Gestão de Prazos'!$J140/'Gestão de Prazos'!$K140,"-") -> - | M96: 5 | N96: =ROUNDUP('Gestão de Prazos'!$J96/'Gestão de Prazos'!$M96,0) -> 4000 | O96: RS | P96: 2021-03-05 | S96: 2021-03-05 | U96: =VLOOKUP('Gestão de Prazos'!$E96,Tabela6[],7,0) -> 0 | V96: ='Gestão de Prazos'!$U96*'Gestão de Prazos'!$J96 -> 0 | Y96: 2471620633342369FALSO
B97: FALSE | C97: 24715 | D97: 206333 | E97: 42368 | F97: =IFERROR(VLOOKUP('Gestão de Prazos'!$E97,Tabela6[],2,0),"Cadastrar produto na aba (Cadastro de Produtos)") -> EXEMPLO 11 | G97: =IFERROR(VLOOKUP('Gestão de Prazos'!$E97,Tabela6[],6,0),"Cadastrar") -> 0 | H97: 2021-01-06 | I97: 20000 | J97: 20000 | K97: 200 | L97: =IFERROR('Gestão de Prazos'!$J145/'Gestão de Prazos'!$K145,"-") -> 450 | M97: 5 | N97: =ROUNDUP('Gestão de Prazos'!$J97/'Gestão de Prazos'!$M97,0) -> 4000 | O97: RS | P97: 2021-03-05 | S97: 2021-03-05 | U97: =VLOOKUP('Gestão de Prazos'!$E97,Tabela6[],7,0) -> 0 | V97: ='Gestão de Prazos'!$U97*'Gestão de Prazos'!$J97 -> 0 | Y97: 2471520633342368FALSO
B98: FALSE | C98: 24714 | D98: 206333 | E98: 42367 | F98: =IFERROR(VLOOKUP('Gestão de Prazos'!$E98,Tabela6[],2,0),"Cadastrar produto na aba (Cadastro de Produtos)") -> EXEMPLO 10 | G98: =IFERROR(VLOOKUP('Gestão de Prazos'!$E98,Tabela6[],6,0),"Cadastrar") -> 0 | H98: 2021-01-06 | I98: 20000 | J98: 20000 | K98: 200 | L98: =IFERROR('Gestão de Prazos'!$J148/'Gestão de Prazos'!$K148,"-") -> - | M98: 5 | N98: =ROUNDUP('Gestão de Prazos'!$J98/'Gestão de Prazos'!$M98,0) -> 4000 | O98: RS | P98: 2021-03-05 | S98: 2021-03-05 | U98: =VLOOKUP('Gestão de Prazos'!$E98,Tabela6[],7,0) -> 0 | V98: ='Gestão de Prazos'!$U98*'Gestão de Prazos'!$J98 -> 0 | Y98: 2471420633342367FALSO
B99: FALSE | C99: 24250 | D99: 204828 - 11ª ENTREGA | E99: 42095 | F99: =IFERROR(VLOOKUP('Gestão de Prazos'!$E99,Tabela6[],2,0),"Cadastrar produto na aba (Cadastro de Produtos)") -> EXEMPLO 27 | G99: =IFERROR(VLOOKUP('Gestão de Prazos'!$E99,Tabela6[],6,0),"Cadastrar") -> 0 | H99: 2020-12-22 | I99: 2440000 | J99: 2440000 | K99: - | L99: =IFERROR('Gestão de Prazos'!$J105/'Gestão de Prazos'!$K105,"-") -> - | M99: 1000 | N99: =ROUNDUP('Gestão de Prazos'!$J99/'Gestão de Prazos'!$M99,0) -> 2440 | O99: SP | P99: 2021-03-02 | S99: 2021-03-02 | U99: =VLOOKUP('Gestão de Prazos'!$E99,Tabela6[],7,0) -> 0.0035 | V99: ='Gestão de Prazos'!$U99*'Gestão de Prazos'!$J99 -> 8540 | Y99: 24250204828 - 11ª ENTREGA42095FALSO
B100: FALSE | C100: 24455 | D100: 204394 | E100: 39227 | F100: =IFERROR(VLOOKUP('Gestão de Prazos'!$E100,Tabela6[],2,0),"Cadastrar produto na aba (Cadastro de Produtos)") -> EXEMPLO 49 | G100: =IFERROR(VLOOKUP('Gestão de Prazos'!$E100,Tabela6[],6,0),"Cadastrar") -> 0 | H100: 2020-12-16 | I100: 2000 | J100: 2000 | K100: - | L100: =IFERROR('Gestão de Prazos'!$J27/'Gestão de Prazos'!$K27,"-") -> - | M100: 20 | N100: =ROUNDUP('Gestão de Prazos'!$J100/'Gestão de Prazos'!$M100,0) -> 100 | O100: RS | P100: 2021-03-01 | S100: 2021-03-01 | U100: =VLOOKUP('Gestão de Prazos'!$E100,Tabela6[],7,0) -> 0.112 | V100: ='Gestão de Prazos'!$U100*'Gestão de Prazos'!$J100 -> 224 | Y100: 2445520439439227FALSO
B101: FALSE | C101: 24456 | D101: 204394 | E101: 39225 | F101: =IFERROR(VLOOKUP('Gestão de Prazos'!$E101,Tabela6[],2,0),"Cadastrar produto na aba (Cadastro de Produtos)") -> EXEMPLO 48 | G101: =IFERROR(VLOOKUP('Gestão de Prazos'!$E101,Tabela6[],6,0),"Cadastrar") -> 0 | H101: 2020-12-16 | I101: 1760 | J101: 1760 | K101: - | L101: =IFERROR('Gestão de Prazos'!$J46/'Gestão de Prazos'!$K46,"-") -> - | M101: 20 | N101: =ROUNDUP('Gestão de Prazos'!$J101/'Gestão de Prazos'!$M101,0) -> 88 | O101: RS | P101: 2021-03-01 | S101: 2021-03-01 | U101: =VLOOKUP('Gestão de Prazos'!$E101,Tabela6[],7,0) -> 0.175 | V101: ='Gestão de Prazos'!$U101*'Gestão de Prazos'!$J101 -> 308 | Y101: 2445620439439225FALSO
B102: FALSE | C102: 24702 | D102: 206183 | E102: 27349 | F102: =IFERROR(VLOOKUP('Gestão de Prazos'!$E102,Tabela6[],2,0),"Cadastrar produto na aba (Cadastro de Produtos)") -> EXEMPLO 15 | G102: =IFERROR(VLOOKUP('Gestão de Prazos'!$E102,Tabela6[],6,0),"Cadastrar") -> 0 | H102: 2021-01-06 | I102: 5000000 | J102: 5000000 | K102: - | L102: =IFERROR('Gestão de Prazos'!$J69/'Gestão de Prazos'!$K69,"-") -> - | M102: 2000 | N102: =ROUNDUP('Gestão de Prazos'!$J102/'Gestão de Prazos'!$M102,0) -> 2500 | O102: RS | P102: 2021-03-01 | S102: 2021-03-01 | U102: =VLOOKUP('Gestão de Prazos'!$E102,Tabela6[],7,0) -> 0.0034 | V102: ='Gestão de Prazos'!$U102*'Gestão de Prazos'!$J102 -> 17000 | Y102: 2470220618327349FALSO
B103: FALSE | C103: 24705 | D103: 206182 | E103: 27349 | F103: =IFERROR(VLOOKUP('Gestão de Prazos'!$E103,Tabela6[],2,0),"Cadastrar produto na aba (Cadastro de Produtos)") -> EXEMPLO 15 | G103: =IFERROR(VLOOKUP('Gestão de Prazos'!$E103,Tabela6[],6,0),"Cadastrar") -> 0 | H103: 2021-01-06 | I103: 2240000 | J103: 2240000 | K103: - | L103: =IFERROR('Gestão de Prazos'!$J70/'Gestão de Prazos'!$K70,"-") -> - | M103: 2000 | N103: =ROUNDUP('Gestão de Prazos'!$J103/'Gestão de Prazos'!$M103,0) -> 1120 | O103: RS | P103: 2021-03-01 | S103: 2021-03-01 | U103: =VLOOKUP('Gestão de Prazos'!$E103,Tabela6[],7,0) -> 0.0034 | V103: ='Gestão de Prazos'!$U103*'Gestão de Prazos'!$J103 -> 7616 | Y103: 2470520618227349FALSO
B104: FALSE | C104: 24704 | D104: 206182 | E104: 27348 | F104: =IFERROR(VLOOKUP('Gestão de Prazos'!$E104,Tabela6[],2,0),"Cadastrar produto na aba (Cadastro de Produtos)") -> EXEMPLO 14 | G104: =IFERROR(VLOOKUP('Gestão de Prazos'!$E104,Tabela6[],6,0),"Cadastrar") -> 0 | H104: 2021-01-06 | I104: 1470000 | J104: 1470000 | K104: - | L104: =IFERROR('Gestão de Prazos'!$J71/'Gestão de Prazos'!$K71,"-") -> - | M104: 2000 | N104: =ROUNDUP('Gestão de Prazos'!$J104/'Gestão de Prazos'!$M104,0) -> 735 | O104: RS | P104: 2021-03-01 | S104: 2021-03-01 | U104: =VLOOKUP('Gestão de Prazos'!$E104,Tabela6[],7,0) -> 0.0034 | V104: ='Gestão de Prazos'!$U104*'Gestão de Prazos'!$J104 -> 4998 | Y104: 2470420618227348FALSO
B105: FALSE | C105: 24702 | D105: 206183 | E105: 39811 | F105: =IFERROR(VLOOKUP('Gestão de Prazos'!$E105,Tabela6[],2,0),"Cadastrar produto na aba (Cadastro de Produtos)") -> EXEMPLO 22 | G105: =IFERROR(VLOOKUP('Gestão de Prazos'!$E105,Tabela6[],6,0),"Cadastrar") -> 0 | H105: 2021-01-07 | I105: 5000000 | J105: 5000000 | K105: - | L105: =IFERROR('Gestão de Prazos'!$J74/'Gestão de Prazos'!$K74,"-") -> 100 | M105: 2000 | N105: =ROUNDUP('Gestão de Prazos'!$J105/'Gestão de Prazos'!$M105,0) -> 2500 | O105: RS | P105: 2021-03-01 | S105: 2021-03-01 | U105: =VLOOKUP('Gestão de Prazos'!$E105,Tabela6[],7,0) -> 0.0035 | V105: ='Gestão de Prazos'!$U105*'Gestão de Prazos'!$J105 -> 17500 | Y105: 2470220618339811FALSO
B106: FALSE | C106: 24705 | D106: 206182 | E106: 39811 | F106: =IFERROR(VLOOKUP('Gestão de Prazos'!$E106,Tabela6[],2,0),"Cadastrar produto na aba (Cadastro de Produtos)") -> EXEMPLO 22 | G106: =IFERROR(VLOOKUP('Gestão de Prazos'!$E106,Tabela6[],6,0),"Cadastrar") -> 0 | H106: 2021-01-07 | I106: 2240000 | J106: 2240000 | K106: - | L106: =IFERROR('Gestão de Prazos'!$J75/'Gestão de Prazos'!$K75,"-") -> 281 | M106: 2000 | N106: =ROUNDUP('Gestão de Prazos'!$J106/'Gestão de Prazos'!$M106,0) -> 1120 | O106: RS | P106: 2021-03-01 | S106: 2021-03-01 | U106: =VLOOKUP('Gestão de Prazos'!$E106,Tabela6[],7,0) -> 0.0035 | V106: ='Gestão de Prazos'!$U106*'Gestão de Prazos'!$J106 -> 7840 | Y106: 2470520618239811FALSO
B107: FALSE | C107: 24704 | D107: 206182 | E107: 39810 | F107: =IFERROR(VLOOKUP('Gestão de Prazos'!$E107,Tabela6[],2,0),"Cadastrar produto na aba (Cadastro de Produtos)") -> EXEMPLO 21 | G107: =IFERROR(VLOOKUP('Gestão de Prazos'!$E107,Tabela6[],6,0),"Cadastrar") -> 0 | H107: 2021-01-06 | I107: 2000000 | J107: 2000000 | K107: - | L107: =IFERROR('Gestão de Prazos'!$J84/'Gestão de Prazos'!$K84,"-") -> - | M107: 2000 | N107: =ROUNDUP('Gestão de Prazos'!$J107/'Gestão de Prazos'!$M107,0) -> 1000 | O107: RS | P107: 2021-03-01 | S107: 2021-03-01 | U107: =VLOOKUP('Gestão de Prazos'!$E107,Tabela6[],7,0) -> 0.0035 | V107: ='Gestão de Prazos'!$U107*'Gestão de Prazos'!$J107 -> 7000 | Y107: 2470420618239810FALSO
B108: FALSE | C108: 24703 | D108: 206182 | E108: 39814 | F108: =IFERROR(VLOOKUP('Gestão de Prazos'!$E108,Tabela6[],2,0),"Cadastrar produto na aba (Cadastro de Produtos)") -> EXEMPLO 25 | G108: =IFERROR(VLOOKUP('Gestão de Prazos'!$E108,Tabela6[],6,0),"Cadastrar") -> 0 | H108: 2021-01-06 | I108: 500000 | J108: 500000 | K108: - | L108: =IFERROR('Gestão de Prazos'!$J92/'Gestão de Prazos'!$K92,"-") -> 350 | M108: 1000 | N108: =ROUNDUP('Gestão de Prazos'!$J108/'Gestão de Prazos'!$M108,0) -> 500 | O108: RS | P108: 2021-03-01 | S108: 2021-03-01 | U108: =VLOOKUP('Gestão de Prazos'!$E108,Tabela6[],7,0) -> 0.0035 | V108: ='Gestão de Prazos'!$U108*'Gestão de Prazos'!$J108 -> 1750 | Y108: 2470320618239814FALSO
B109: FALSE | C109: 24250 | D109: 204828 - 10ª ENTREGA | E109: 42095 | F109: =IFERROR(VLOOKUP('Gestão de Prazos'!$E109,Tabela6[],2,0),"Cadastrar produto na aba (Cadastro de Produtos)") -> EXEMPLO 27 | G109: =IFERROR(VLOOKUP('Gestão de Prazos'!$E109,Tabela6[],6,0),"Cadastrar") -> 0 | H109: 2020-12-22 | I109: 4400000 | J109: 1960000 | K109: - | L109: =IFERROR('Gestão de Prazos'!$J104/'Gestão de Prazos'!$K104,"-") -> - | M109: 1000 | N109: =ROUNDUP('Gestão de Prazos'!$J109/'Gestão de Prazos'!$M109,0) -> 1960 | O109: SP | P109: 2021-03-01 | S109: 2021-03-01 | U109: =VLOOKUP('Gestão de Prazos'!$E109,Tabela6[],7,0) -> 0.0035 | V109: ='Gestão de Prazos'!$U109*'Gestão de Prazos'!$J109 -> 6860 | Y109: 24250204828 - 10ª ENTREGA42095FALSO
B110: FALSE | C110: 25382 | D110: 210789 | E110: 39231 | F110: =IFERROR(VLOOKUP('Gestão de Prazos'!$E110,Tabela6[],2,0),"Cadastrar produto na aba (Cadastro de Produtos)") -> EXEMPLO 53 | G110: =IFERROR(VLOOKUP('Gestão de Prazos'!$E110,Tabela6[],6,0),"Cadastrar") -> 0 | H110: - | I110: 1680 | J110: 1680 | K110: - | L110: =IFERROR('Gestão de Prazos'!$J58/'Gestão de Prazos'!$K58,"-") -> - | M110: 30 | N110: =ROUNDUP('Gestão de Prazos'!$J110/'Gestão de Prazos'!$M110,0) -> 56 | O110: RS | P110: 2021-02-26 | S110: 2021-02-26 | U110: =VLOOKUP('Gestão de Prazos'!$E110,Tabela6[],7,0) -> 0.112 | V110: ='Gestão de Prazos'!$U110*'Gestão de Prazos'!$J110 -> 188.16 | Y110: 2538221078939231FALSO
B111: FALSE | C111: 24250 | D111: 204828 - 9ª ENTREGA | E111: 42095 | F111: =IFERROR(VLOOKUP('Gestão de Prazos'!$E111,Tabela6[],2,0),"Cadastrar produto na aba (Cadastro de Produtos)") -> EXEMPLO 27 | G111: =IFERROR(VLOOKUP('Gestão de Prazos'!$E111,Tabela6[],6,0),"Cadastrar") -> 0 | H111: 2020-12-22 | I111: 6360000 | J111: 1960000 | K111: - | L111: =IFERROR('Gestão de Prazos'!$J103/'Gestão de Prazos'!$K103,"-") -> - | M111: 1000 | N111: =ROUNDUP('Gestão de Prazos'!$J111/'Gestão de Prazos'!$M111,0) -> 1960 | O111: SP | P111: 2021-02-22 | S111: 2021-02-22 | U111: =VLOOKUP('Gestão de Prazos'!$E111,Tabela6[],7,0) -> 0.0035 | V111: ='Gestão de Prazos'!$U111*'Gestão de Prazos'!$J111 -> 6860 | Y111: 24250204828 - 9ª ENTREGA42095FALSO
B112: FALSE | C112: 24697 | D112: 206181 | E112: 27349 | F112: =IFERROR(VLOOKUP('Gestão de Prazos'!$E112,Tabela6[],2,0),"Cadastrar produto na aba (Cadastro de Produtos)") -> EXEMPLO 15 | G112: =IFERROR(VLOOKUP('Gestão de Prazos'!$E112,Tabela6[],6,0),"Cadastrar") -> 0 | H112: 2021-01-06 | I112: 2400000 | J112: 2400000 | K112: - | L112: =IFERROR('Gestão de Prazos'!$J68/'Gestão de Prazos'!$K68,"-") -> 9 | M112: 2000 | N112: =ROUNDUP('Gestão de Prazos'!$J112/'Gestão de Prazos'!$M112,0) -> 1200 | O112: RS | P112: 2021-02-15 | S112: 2021-02-15 | U112: =VLOOKUP('Gestão de Prazos'!$E112,Tabela6[],7,0) -> 0.0034 | V112: ='Gestão de Prazos'!$U112*'Gestão de Prazos'!$J112 -> 8160 | Y112: 2469720618127349FALSO
B113: FALSE | C113: 24697 | D113: 206181 | E113: 39811 | F113: =IFERROR(VLOOKUP('Gestão de Prazos'!$E113,Tabela6[],2,0),"Cadastrar produto na aba (Cadastro de Produtos)") -> EXEMPLO 22 | G113: =IFERROR(VLOOKUP('Gestão de Prazos'!$E113,Tabela6[],6,0),"Cadastrar") -> 0 | H113: 2021-01-07 | I113: 2400000 | J113: 2400000 | K113: - | L113: =IFERROR('Gestão de Prazos'!$J73/'Gestão de Prazos'!$K73,"-") -> - | M113: 2000 | N113: =ROUNDUP('Gestão de Prazos'!$J113/'Gestão de Prazos'!$M113,0) -> 1200 | O113: RS | P113: 2021-02-15 | S113: 2021-02-15 | U113: =VLOOKUP('Gestão de Prazos'!$E113,Tabela6[],7,0) -> 0.0035 | V113: ='Gestão de Prazos'!$U113*'Gestão de Prazos'!$J113 -> 8400 | Y113: 2469720618139811FALSO
B114: FALSE | C114: 24700 | D114: 206318 | E114: 33470 | F114: =IFERROR(VLOOKUP('Gestão de Prazos'!$E114,Tabela6[],2,0),"Cadastrar produto na aba (Cadastro de Produtos)") -> EXEMPLO 4 | G114: =IFERROR(VLOOKUP('Gestão de Prazos'!$E114,Tabela6[],6,0),"Cadastrar") -> 0 | H114: 2021-01-06 | I114: 70000 | J114: 70000 | K114: 200 | L114: =IFERROR('Gestão de Prazos'!$J123/'Gestão de Prazos'!$K123,"-") -> - | M114: 5 | N114: =ROUNDUP('Gestão de Prazos'!$J114/'Gestão de Prazos'!$M114,0) -> 14000 | O114: RS | P114: 2021-02-08 | S114: 2021-02-08 | U114: =VLOOKUP('Gestão de Prazos'!$E114,Tabela6[],7,0) -> 0 | V114: ='Gestão de Prazos'!$U114*'Gestão de Prazos'!$J114 -> 0 | Y114: 2470020631833470FALSO
B115: FALSE | C115: 24699 | D115: 206274 | E115: 33487 | F115: =IFERROR(VLOOKUP('Gestão de Prazos'!$E115,Tabela6[],2,0),"Cadastrar produto na aba (Cadastro de Produtos)") -> EXEMPLO 5 | G115: =IFERROR(VLOOKUP('Gestão de Prazos'!$E115,Tabela6[],6,0),"Cadastrar") -> 0 | H115: 2021-01-06 | I115: 80000 | J115: 80000 | K115: 200 | L115: =IFERROR('Gestão de Prazos'!$J128/'Gestão de Prazos'!$K128,"-") -> - | M115: 5 | N115: =ROUNDUP('Gestão de Prazos'!$J115/'Gestão de Prazos'!$M115,0) -> 16000 | O115: RS | P115: 2021-02-08 | S115: 2021-02-08 | U115: =VLOOKUP('Gestão de Prazos'!$E115,Tabela6[],7,0) -> 0 | V115: ='Gestão de Prazos'!$U115*'Gestão de Prazos'!$J115 -> 0 | Y115: 2469920627433487FALSO
B116: FALSE | C116: 24698 | D116: 206224 | E116: 33489 | F116: =IFERROR(VLOOKUP('Gestão de Prazos'!$E116,Tabela6[],2,0),"Cadastrar produto na aba (Cadastro de Produtos)") -> EXEMPLO 7 | G116: =IFERROR(VLOOKUP('Gestão de Prazos'!$E116,Tabela6[],6,0),"Cadastrar") -> 0 | H116: 2021-01-06 | I116: 40000 | J116: 40000 | K116: 200 | L116: =IFERROR('Gestão de Prazos'!$J131/'Gestão de Prazos'!$K131,"-") -> - | M116: 5 | N116: =ROUNDUP('Gestão de Prazos'!$J116/'Gestão de Prazos'!$M116,0) -> 8000 | O116: RS | P116: 2021-02-08 | S116: 2021-02-08 | U116: =VLOOKUP('Gestão de Prazos'!$E116,Tabela6[],7,0) -> 0 | V116: ='Gestão de Prazos'!$U116*'Gestão de Prazos'!$J116 -> 0 | Y116: 2469820622433489FALSO
B117: FALSE | C117: 24701 | D117: 206217 | E117: 33468 | F117: =IFERROR(VLOOKUP('Gestão de Prazos'!$E117,Tabela6[],2,0),"Cadastrar produto na aba (Cadastro de Produtos)") -> Exemplo 2 | G117: =IFERROR(VLOOKUP('Gestão de Prazos'!$E117,Tabela6[],6,0),"Cadastrar") -> 0 | H117: 2021-01-06 | I117: 70000 | J117: 70000 | K117: 200 | L117: =IFERROR('Gestão de Prazos'!$J136/'Gestão de Prazos'!$K136,"-") -> - | M117: 5 | N117: =ROUNDUP('Gestão de Prazos'!$J117/'Gestão de Prazos'!$M117,0) -> 14000 | O117: RS | P117: 2021-02-08 | S117: 2021-02-08 | U117: =VLOOKUP('Gestão de Prazos'!$E117,Tabela6[],7,0) -> 0 | V117: ='Gestão de Prazos'!$U117*'Gestão de Prazos'!$J117 -> 0 | Y117: 2470120621733468FALSO
B118: FALSE | C118: 24452 | D118: 204381 | E118: 39227 | F118: =IFERROR(VLOOKUP('Gestão de Prazos'!$E118,Tabela6[],2,0),"Cadastrar produto na aba (Cadastro de Produtos)") -> EXEMPLO 49 | G118: =IFERROR(VLOOKUP('Gestão de Prazos'!$E118,Tabela6[],6,0),"Cadastrar") -> 0 | H118: 2020-12-16 | I118: 2000 | J118: 2000 | K118: - | L118: =IFERROR('Gestão de Prazos'!$J26/'Gestão de Prazos'!$K26,"-") -> - | M118: 20 | N118: =ROUNDUP('Gestão de Prazos'!$J118/'Gestão de Prazos'!$M118,0) -> 100 | O118: RS | P118: 2021-02-05 | S118: 2021-02-05 | U118: =VLOOKUP('Gestão de Prazos'!$E118,Tabela6[],7,0) -> 0.112 | V118: ='Gestão de Prazos'!$U118*'Gestão de Prazos'!$J118 -> 224 | Y118: 2445220438139227FALSO
B119: FALSE | C119: 24454 | D119: 204381 | E119: 39225 | F119: =IFERROR(VLOOKUP('Gestão de Prazos'!$E119,Tabela6[],2,0),"Cadastrar produto na aba (Cadastro de Produtos)") -> EXEMPLO 48 | G119: =IFERROR(VLOOKUP('Gestão de Prazos'!$E119,Tabela6[],6,0),"Cadastrar") -> 0 | H119: 2020-12-16 | I119: 1660 | J119: 1660 | K119: - | L119: =IFERROR('Gestão de Prazos'!$J45/'Gestão de Prazos'!$K45,"-") -> - | M119: 20 | N119: =ROUNDUP('Gestão de Prazos'!$J119/'Gestão de Prazos'!$M119,0) -> 83 | O119: RS | P119: 2021-02-05 | S119: 2021-02-05 | U119: =VLOOKUP('Gestão de Prazos'!$E119,Tabela6[],7,0) -> 0.175 | V119: ='Gestão de Prazos'!$U119*'Gestão de Prazos'!$J119 -> 290.5 | Y119: 2445420438139225FALSO
B120: FALSE | C120: 24453 | D120: 204381 | E120: 23293 | F120: =IFERROR(VLOOKUP('Gestão de Prazos'!$E120,Tabela6[],2,0),"Cadastrar produto na aba (Cadastro de Produtos)") -> EXEMPLO 42 | G120: =IFERROR(VLOOKUP('Gestão de Prazos'!$E120,Tabela6[],6,0),"Cadastrar") -> 0 | H120: 2020-12-16 | I120: 1210 | J120: 1210 | K120: - | L120: =IFERROR('Gestão de Prazos'!$J64/'Gestão de Prazos'!$K64,"-") -> 300 | M120: 10 | N120: =ROUNDUP('Gestão de Prazos'!$J120/'Gestão de Prazos'!$M120,0) -> 121 | O120: RS | P120: 2021-02-05 | S120: 2021-02-05 | U120: =VLOOKUP('Gestão de Prazos'!$E120,Tabela6[],7,0) -> 0.195 | V120: ='Gestão de Prazos'!$U120*'Gestão de Prazos'!$J120 -> 235.95 | Y120: 2445320438123293FALSO
B121: FALSE | C121: 24416 | D121: 204057 | E121: 39811 | F121: =IFERROR(VLOOKUP('Gestão de Prazos'!$E121,Tabela6[],2,0),"Cadastrar produto na aba (Cadastro de Produtos)") -> EXEMPLO 22 | G121: =IFERROR(VLOOKUP('Gestão de Prazos'!$E121,Tabela6[],6,0),"Cadastrar") -> 0 | H121: 2020-12-14 | I121: 5000000 | J121: 5000000 | K121: - | L121: =IFERROR('Gestão de Prazos'!$J72/'Gestão de Prazos'!$K72,"-") -> - | M121: 2000 | N121: =ROUNDUP('Gestão de Prazos'!$J121/'Gestão de Prazos'!$M121,0) -> 2500 | O121: RS | P121: 2021-02-01 | S121: 2021-02-01 | U121: =VLOOKUP('Gestão de Prazos'!$E121,Tabela6[],7,0) -> 0.0035 | V121: ='Gestão de Prazos'!$U121*'Gestão de Prazos'!$J121 -> 17500 | Y121: 2441620405739811FALSO
B122: FALSE | C122: 24415 | D122: 204057 | E122: 39810 | F122: =IFERROR(VLOOKUP('Gestão de Prazos'!$E122,Tabela6[],2,0),"Cadastrar produto na aba (Cadastro de Produtos)") -> EXEMPLO 21 | G122: =IFERROR(VLOOKUP('Gestão de Prazos'!$E122,Tabela6[],6,0),"Cadastrar") -> 0 | H122: 2020-12-14 | I122: 1600000 | J122: 1600000 | K122: - | L122: =IFERROR('Gestão de Prazos'!$J83/'Gestão de Prazos'!$K83,"-") -> - | M122: 2000 | N122: =ROUNDUP('Gestão de Prazos'!$J122/'Gestão de Prazos'!$M122,0) -> 800 | O122: RS | P122: 2021-02-01 | S122: 2021-02-01 | U122: =VLOOKUP('Gestão de Prazos'!$E122,Tabela6[],7,0) -> 0.0035 | V122: ='Gestão de Prazos'!$U122*'Gestão de Prazos'!$J122 -> 5600 | Y122: 2441520405739810FALSO
B123: FALSE | C123: 24252 | D123: 202652 | E123: 20137 | F123: =IFERROR(VLOOKUP('Gestão de Prazos'!$E123,Tabela6[],2,0),"Cadastrar produto na aba (Cadastro de Produtos)") -> EXEMPLO 13 | G123: =IFERROR(VLOOKUP('Gestão de Prazos'!$E123,Tabela6[],6,0),"Cadastrar") -> 0 | H123: 2020-12-01 | I123: 20000 | J123: 20000 | K123: - | L123: =IFERROR('Gestão de Prazos'!$J94/'Gestão de Prazos'!$K94,"-") -> 200 | M123: 1000 | N123: =ROUNDUP('Gestão de Prazos'!$J123/'Gestão de Prazos'!$M123,0) -> 20 | O123: RS | P123: 2021-02-01 | S123: 2021-02-01 | U123: =VLOOKUP('Gestão de Prazos'!$E123,Tabela6[],7,0) -> 0.0035 | V123: ='Gestão de Prazos'!$U123*'Gestão de Prazos'!$J123 -> 70 | Y123: 2425220265220137FALSO
B124: FALSE | C124: 24725 | D124: 206703 | E124: 42338 | F124: =IFERROR(VLOOKUP('Gestão de Prazos'!$E124,Tabela6[],2,0),"Cadastrar produto na aba (Cadastro de Produtos)") -> EXEMPLO 28 | G124: =IFERROR(VLOOKUP('Gestão de Prazos'!$E124,Tabela6[],6,0),"Cadastrar") -> 0 | H124: 2021-01-08 | I124: 100000 | J124: 100000 | K124: 250 | L124: =IFERROR('Gestão de Prazos'!$J106/'Gestão de Prazos'!$K106,"-") -> - | M124: 1000 | N124: =ROUNDUP('Gestão de Prazos'!$J124/'Gestão de Prazos'!$M124,0) -> 100 | O124: SP | P124: 2021-01-29 | S124: 2021-01-29 | U124: =VLOOKUP('Gestão de Prazos'!$E124,Tabela6[],7,0) -> 0.0035 | V124: ='Gestão de Prazos'!$U124*'Gestão de Prazos'!$J124 -> 350 | Y124: 2472520670342338FALSO
B125: FALSE | C125: 24726 | D125: 206704 | E125: 42339 | F125: =IFERROR(VLOOKUP('Gestão de Prazos'!$E125,Tabela6[],2,0),"Cadastrar produto na aba (Cadastro de Produtos)") -> EXEMPLO 29 | G125: =IFERROR(VLOOKUP('Gestão de Prazos'!$E125,Tabela6[],6,0),"Cadastrar") -> 0 | H125: 2021-01-08 | I125: 37500 | J125: 37500 | K125: 250 | L125: =IFERROR('Gestão de Prazos'!$J114/'Gestão de Prazos'!$K114,"-") -> 350 | M125: 1000 | N125: =ROUNDUP('Gestão de Prazos'!$J125/'Gestão de Prazos'!$M125,0) -> 38 | O125: SP | P125: 2021-01-29 | S125: 2021-01-29 | U125: =VLOOKUP('Gestão de Prazos'!$E125,Tabela6[],7,0) -> 0.0035 | V125: ='Gestão de Prazos'!$U125*'Gestão de Prazos'!$J125 -> 131.25 | Y125: 2472620670442339FALSO
B126: FALSE | C126: 24676 | D126: 205970 | E126: 39227 | F126: =IFERROR(VLOOKUP('Gestão de Prazos'!$E126,Tabela6[],2,0),"Cadastrar produto na aba (Cadastro de Produtos)") -> EXEMPLO 49 | G126: =IFERROR(VLOOKUP('Gestão de Prazos'!$E126,Tabela6[],6,0),"Cadastrar") -> 0 | H126: 2021-01-06 | I126: 5160 | J126: 5160 | K126: - | L126: =IFERROR('Gestão de Prazos'!$J30/'Gestão de Prazos'!$K30,"-") -> - | M126: 20 | N126: =ROUNDUP('Gestão de Prazos'!$J126/'Gestão de Prazos'!$M126,0) -> 258 | O126: SP | P126: 2021-01-25 | S126: 2021-01-25 | U126: =VLOOKUP('Gestão de Prazos'!$E126,Tabela6[],7,0) -> 0.112 | V126: ='Gestão de Prazos'!$U126*'Gestão de Prazos'!$J126 -> 577.92 | Y126: 2467620597039227FALSO
B127: FALSE | C127: 24250 | D127: 204828 - 8ª ENTREGA | E127: 42095 | F127: =IFERROR(VLOOKUP('Gestão de Prazos'!$E127,Tabela6[],2,0),"Cadastrar produto na aba (Cadastro de Produtos)") -> EXEMPLO 27 | G127: =IFERROR(VLOOKUP('Gestão de Prazos'!$E127,Tabela6[],6,0),"Cadastrar") -> 0 | H127: 2020-12-22 | I127: 8320000 | J127: 1960000 | K127: - | L127: =IFERROR('Gestão de Prazos'!$J102/'Gestão de Prazos'!$K102,"-") -> - | M127: 1000 | N127: =ROUNDUP('Gestão de Prazos'!$J127/'Gestão de Prazos'!$M127,0) -> 1960 | O127: SP | P127: 2021-01-25 | S127: 2021-01-25 | U127: =VLOOKUP('Gestão de Prazos'!$E127,Tabela6[],7,0) -> 0.0035 | V127: ='Gestão de Prazos'!$U127*'Gestão de Prazos'!$J127 -> 6860 | Y127: 24250204828 - 8ª ENTREGA 42095FALSO
B128: FALSE | C128: 24769 | D128: 207066 | E128: 39228 | F128: =IFERROR(VLOOKUP('Gestão de Prazos'!$E128,Tabela6[],2,0),"Cadastrar produto na aba (Cadastro de Produtos)") -> EXEMPLO 50 | G128: =IFERROR(VLOOKUP('Gestão de Prazos'!$E128,Tabela6[],6,0),"Cadastrar") -> 0 | H128: 2021-01-12 | I128: 2000 | J128: 2000 | K128: - | L128: =IFERROR('Gestão de Prazos'!$J54/'Gestão de Prazos'!$K54,"-") -> 500 | M128: 20 | N128: =ROUNDUP('Gestão de Prazos'!$J128/'Gestão de Prazos'!$M128,0) -> 100 | O128: SP | P128: 2021-01-22 | S128: 2021-01-22 | U128: =VLOOKUP('Gestão de Prazos'!$E128,Tabela6[],7,0) -> Pesar | V128: ='Gestão de Prazos'!$U128*'Gestão de Prazos'!$J128 ->  | Y128: 2476920706639228FALSO
B129: FALSE | C129: 24766 | D129: 206118 | E129: 12654 | F129: =IFERROR(VLOOKUP('Gestão de Prazos'!$E129,Tabela6[],2,0),"Cadastrar produto na aba (Cadastro de Produtos)") -> EXEMPLO 32 | G129: =IFERROR(VLOOKUP('Gestão de Prazos'!$E129,Tabela6[],6,0),"Cadastrar") -> 0 | H129: 2021-01-06 | I129: 135000 | J129: 135000 | K129: - | L129: =IFERROR('Gestão de Prazos'!$J17/'Gestão de Prazos'!$K17,"-") -> 1000 | M129: 3000 | N129: =ROUNDUP('Gestão de Prazos'!$J129/'Gestão de Prazos'!$M129,0) -> 45 | O129: SP | P129: 2021-01-21 | S129: 2021-01-21 | U129: =VLOOKUP('Gestão de Prazos'!$E129,Tabela6[],7,0) -> 0.0045 | V129: ='Gestão de Prazos'!$U129*'Gestão de Prazos'!$J129 -> 607.5 | Y129: 2476620611812654FALSO
B130: FALSE | C130: 24763 | D130: 206118 | E130: 39227 | F130: =IFERROR(VLOOKUP('Gestão de Prazos'!$E130,Tabela6[],2,0),"Cadastrar produto na aba (Cadastro de Produtos)") -> EXEMPLO 49 | G130: =IFERROR(VLOOKUP('Gestão de Prazos'!$E130,Tabela6[],6,0),"Cadastrar") -> 0 | H130: 2021-01-06 | I130: 5420 | J130: 5420 | K130: - | L130: =IFERROR('Gestão de Prazos'!$J31/'Gestão de Prazos'!$K31,"-") -> - | M130: 20 | N130: =ROUNDUP('Gestão de Prazos'!$J130/'Gestão de Prazos'!$M130,0) -> 271 | O130: SP | P130: 2021-01-21 | S130: 2021-01-21 | U130: =VLOOKUP('Gestão de Prazos'!$E130,Tabela6[],7,0) -> 0.112 | V130: ='Gestão de Prazos'!$U130*'Gestão de Prazos'!$J130 -> 607.04 | Y130: 2476320611839227FALSO
B131: FALSE | C131: 24448 | D131: 204411 | E131: 39227 | F131: =IFERROR(VLOOKUP('Gestão de Prazos'!$E131,Tabela6[],2,0),"Cadastrar produto na aba (Cadastro de Produtos)") -> EXEMPLO 49 | G131: =IFERROR(VLOOKUP('Gestão de Prazos'!$E131,Tabela6[],6,0),"Cadastrar") -> 0 | H131: 2020-12-16 | I131: 2000 | J131: 2000 | K131: - | L131: =IFERROR('Gestão de Prazos'!$J25/'Gestão de Prazos'!$K25,"-") -> 500 | M131: 20 | N131: =ROUNDUP('Gestão de Prazos'!$J131/'Gestão de Prazos'!$M131,0) -> 100 | O131: RS | P131: 2021-01-20 | S131: 2021-01-20 | U131: =VLOOKUP('Gestão de Prazos'!$E131,Tabela6[],7,0) -> 0.112 | V131: ='Gestão de Prazos'!$U131*'Gestão de Prazos'!$J131 -> 224 | Y131: 2444820441139227FALSO
B132: FALSE | C132: 24544 | D132: 204961 | E132: 39227 | F132: =IFERROR(VLOOKUP('Gestão de Prazos'!$E132,Tabela6[],2,0),"Cadastrar produto na aba (Cadastro de Produtos)") -> EXEMPLO 49 | G132: =IFERROR(VLOOKUP('Gestão de Prazos'!$E132,Tabela6[],6,0),"Cadastrar") -> 0 | H132: 2020-12-22 | I132: 4400 | J132: 4400 | K132: - | L132: =IFERROR('Gestão de Prazos'!$J29/'Gestão de Prazos'!$K29,"-") -> - | M132: 20 | N132: =ROUNDUP('Gestão de Prazos'!$J132/'Gestão de Prazos'!$M132,0) -> 220 | O132: SP | P132: 2021-01-20 | S132: 2021-01-20 | U132: =VLOOKUP('Gestão de Prazos'!$E132,Tabela6[],7,0) -> 0.112 | V132: ='Gestão de Prazos'!$U132*'Gestão de Prazos'!$J132 -> 492.8 | Y132: 2454420496139227FALSO
B133: FALSE | C133: Comp | D133: 204411 | E133: 18952 | F133: =IFERROR(VLOOKUP('Gestão de Prazos'!$E133,Tabela6[],2,0),"Cadastrar produto na aba (Cadastro de Produtos)") -> EXEMPLO 41 | G133: =IFERROR(VLOOKUP('Gestão de Prazos'!$E133,Tabela6[],6,0),"Cadastrar") -> 0 | H133: 2020-12-16 | I133: 60 | J133: 60 | K133: - | L133: =IFERROR('Gestão de Prazos'!$J63/'Gestão de Prazos'!$K63,"-") -> 300 | M133: 30 | N133: =ROUNDUP('Gestão de Prazos'!$J133/'Gestão de Prazos'!$M133,0) -> 2 | O133: RS | P133: 2021-01-20 | S133: 2021-01-20 | U133: =VLOOKUP('Gestão de Prazos'!$E133,Tabela6[],7,0) -> Pesar | V133: ='Gestão de Prazos'!$U133*'Gestão de Prazos'!$J133 ->  | Y133: Comp20441118952FALSO
B134: FALSE | C134: 24250 | D134: 204828 - 7ª ENTREGA | E134: 42095 | F134: =IFERROR(VLOOKUP('Gestão de Prazos'!$E134,Tabela6[],2,0),"Cadastrar produto na aba (Cadastro de Produtos)") -> EXEMPLO 27 | G134: =IFERROR(VLOOKUP('Gestão de Prazos'!$E134,Tabela6[],6,0),"Cadastrar") -> 0 | H134: 2020-12-22 | I134: 10280000 | J134: 1960000 | K134: - | L134: =IFERROR('Gestão de Prazos'!$J101/'Gestão de Prazos'!$K101,"-") -> - | M134: 1000 | N134: =ROUNDUP('Gestão de Prazos'!$J134/'Gestão de Prazos'!$M134,0) -> 1960 | O134: SP | P134: 2021-01-20 | S134: 2021-01-20 | U134: =VLOOKUP('Gestão de Prazos'!$E134,Tabela6[],7,0) -> 0.0035 | V134: ='Gestão de Prazos'!$U134*'Gestão de Prazos'!$J134 -> 6860 | Y134: 24250204828 - 7ª ENTREGA42095FALSO
B135: FALSE | C135: 24250 | D135: 204828 - 6ª ENTREGA | E135: 42095 | F135: =IFERROR(VLOOKUP('Gestão de Prazos'!$E135,Tabela6[],2,0),"Cadastrar produto na aba (Cadastro de Produtos)") -> EXEMPLO 27 | G135: =IFERROR(VLOOKUP('Gestão de Prazos'!$E135,Tabela6[],6,0),"Cadastrar") -> 0 | H135: 2020-12-22 | I135: 12240000 | J135: 1960000 | K135: - | L135: =IFERROR('Gestão de Prazos'!$J100/'Gestão de Prazos'!$K100,"-") -> - | M135: 1000 | N135: =ROUNDUP('Gestão de Prazos'!$J135/'Gestão de Prazos'!$M135,0) -> 1960 | O135: SP | P135: 2021-01-18 | S135: 2021-01-18 | U135: =VLOOKUP('Gestão de Prazos'!$E135,Tabela6[],7,0) -> 0.0035 | V135: ='Gestão de Prazos'!$U135*'Gestão de Prazos'!$J135 -> 6860 | Y135: 24250204828 - 6ª ENTREGA42095FALSO
B136: FALSE | C136: 24414 | D136: 204056 | E136: 39814 | F136: =IFERROR(VLOOKUP('Gestão de Prazos'!$E136,Tabela6[],2,0),"Cadastrar produto na aba (Cadastro de Produtos)") -> EXEMPLO 25 | G136: =IFERROR(VLOOKUP('Gestão de Prazos'!$E136,Tabela6[],6,0),"Cadastrar") -> 0 | H136: 2020-12-14 | I136: 555000 | J136: 555000 | K136: - | L136: =IFERROR('Gestão de Prazos'!$J91/'Gestão de Prazos'!$K91,"-") -> 150 | M136: 1000 | N136: =ROUNDUP('Gestão de Prazos'!$J136/'Gestão de Prazos'!$M136,0) -> 555 | O136: RS | P136: 2021-01-15 | S136: 2021-01-15 | U136: =VLOOKUP('Gestão de Prazos'!$E136,Tabela6[],7,0) -> 0.0035 | V136: ='Gestão de Prazos'!$U136*'Gestão de Prazos'!$J136 -> 1942.5 | Y136: 2441420405639814FALSO
B137: FALSE | C137: 24250 | D137: 204828 - 5ª ENTREGA | E137: 42095 | F137: =IFERROR(VLOOKUP('Gestão de Prazos'!$E137,Tabela6[],2,0),"Cadastrar produto na aba (Cadastro de Produtos)") -> EXEMPLO 27 | G137: =IFERROR(VLOOKUP('Gestão de Prazos'!$E137,Tabela6[],6,0),"Cadastrar") -> 0 | H137: 2020-12-22 | I137: 14200000 | J137: 1960000 | K137: - | L137: =IFERROR('Gestão de Prazos'!$J99/'Gestão de Prazos'!$K99,"-") -> - | M137: 1000 | N137: =ROUNDUP('Gestão de Prazos'!$J137/'Gestão de Prazos'!$M137,0) -> 1960 | O137: SP | P137: 2021-01-15 | S137: 2021-01-15 | U137: =VLOOKUP('Gestão de Prazos'!$E137,Tabela6[],7,0) -> 0.0035 | V137: ='Gestão de Prazos'!$U137*'Gestão de Prazos'!$J137 -> 6860 | Y137: 24250204828 - 5ª ENTREGA42095FALSO
B138: FALSE | C138: 24438 | D138: 204255 | E138: 42368 | F138: =IFERROR(VLOOKUP('Gestão de Prazos'!$E138,Tabela6[],2,0),"Cadastrar produto na aba (Cadastro de Produtos)") -> EXEMPLO 11 | G138: =IFERROR(VLOOKUP('Gestão de Prazos'!$E138,Tabela6[],6,0),"Cadastrar") -> 0 | H138: 2020-12-15 | I138: 40000 | J138: 40000 | K138: 200 | L138: =IFERROR('Gestão de Prazos'!$J144/'Gestão de Prazos'!$K144,"-") -> 550 | M138: 5 | N138: =ROUNDUP('Gestão de Prazos'!$J138/'Gestão de Prazos'!$M138,0) -> 8000 | O138: RS | P138: 2021-01-15 | S138: 2021-01-15 | U138: =VLOOKUP('Gestão de Prazos'!$E138,Tabela6[],7,0) -> 0 | V138: ='Gestão de Prazos'!$U138*'Gestão de Prazos'!$J138 -> 0 | Y138: 2443820425542368FALSO
B139: FALSE | C139: 24250 | D139: 204828 - 1ª ENTREGA | E139: 42095 | F139: =IFERROR(VLOOKUP('Gestão de Prazos'!$E139,Tabela6[],2,0),"Cadastrar produto na aba (Cadastro de Produtos)") -> EXEMPLO 27 | G139: =IFERROR(VLOOKUP('Gestão de Prazos'!$E139,Tabela6[],6,0),"Cadastrar") -> 0 | H139: 2020-12-22 | I139: 20080000 | J139: 980000 | K139: - | L139: =IFERROR('Gestão de Prazos'!$J95/'Gestão de Prazos'!$K95,"-") -> 350 | M139: 1000 | N139: =ROUNDUP('Gestão de Prazos'!$J139/'Gestão de Prazos'!$M139,0) -> 980 | O139: SP | P139: 2021-01-14 | S139: 2021-01-14 | U139: =VLOOKUP('Gestão de Prazos'!$E139,Tabela6[],7,0) -> 0.0035 | V139: ='Gestão de Prazos'!$U139*'Gestão de Prazos'!$J139 -> 3430 | Y139: 24250204828 - 1ª ENTREGA 42095FALSO
B140: FALSE | C140: 24250 | D140: 204828 - 2ª ENTREGA | E140: 42095 | F140: =IFERROR(VLOOKUP('Gestão de Prazos'!$E140,Tabela6[],2,0),"Cadastrar produto na aba (Cadastro de Produtos)") -> EXEMPLO 27 | G140: =IFERROR(VLOOKUP('Gestão de Prazos'!$E140,Tabela6[],6,0),"Cadastrar") -> 0 | H140: 2020-12-22 | I140: 19100000 | J140: 980000 | K140: - | L140: =IFERROR('Gestão de Prazos'!$J96/'Gestão de Prazos'!$K96,"-") -> 100 | M140: 1000 | N140: =ROUNDUP('Gestão de Prazos'!$J140/'Gestão de Prazos'!$M140,0) -> 980 | O140: SP | P140: 2021-01-14 | S140: 2021-01-14 | U140: =VLOOKUP('Gestão de Prazos'!$E140,Tabela6[],7,0) -> 0.0035 | V140: ='Gestão de Prazos'!$U140*'Gestão de Prazos'!$J140 -> 3430 | Y140: 24250204828 - 2ª ENTREGA42095FALSO
B141: FALSE | C141: 24250 | D141: 204828 - 4ª ENTREGA | E141: 42095 | F141: =IFERROR(VLOOKUP('Gestão de Prazos'!$E141,Tabela6[],2,0),"Cadastrar produto na aba (Cadastro de Produtos)") -> EXEMPLO 27 | G141: =IFERROR(VLOOKUP('Gestão de Prazos'!$E141,Tabela6[],6,0),"Cadastrar") -> 0 | H141: 2020-12-22 | I141: 16160000 | J141: 1960000 | K141: - | L141: =IFERROR('Gestão de Prazos'!$J98/'Gestão de Prazos'!$K98,"-") -> 100 | M141: 1000 | N141: =ROUNDUP('Gestão de Prazos'!$J141/'Gestão de Prazos'!$M141,0) -> 1960 | O141: SP | P141: 2021-01-14 | S141: 2021-01-14 | U141: =VLOOKUP('Gestão de Prazos'!$E141,Tabela6[],7,0) -> 0.0035 | V141: ='Gestão de Prazos'!$U141*'Gestão de Prazos'!$J141 -> 6860 | Y141: 24250204828 - 4ª ENTREGA42095FALSO
B142: FALSE | C142: 24424 | D142: 204149 | E142: 42369 | F142: =IFERROR(VLOOKUP('Gestão de Prazos'!$E142,Tabela6[],2,0),"Cadastrar produto na aba (Cadastro de Produtos)") -> EXEMPLO 12 | G142: =IFERROR(VLOOKUP('Gestão de Prazos'!$E142,Tabela6[],6,0),"Cadastrar") -> 0 | H142: 2020-12-15 | I142: 20000 | J142: 20000 | K142: 200 | L142: =IFERROR('Gestão de Prazos'!$J139/'Gestão de Prazos'!$K139,"-") -> - | M142: 5 | N142: =ROUNDUP('Gestão de Prazos'!$J142/'Gestão de Prazos'!$M142,0) -> 4000 | O142: RS | P142: 2021-01-14 | S142: 2021-01-14 | U142: =VLOOKUP('Gestão de Prazos'!$E142,Tabela6[],7,0) -> 0 | V142: ='Gestão de Prazos'!$U142*'Gestão de Prazos'!$J142 -> 0 | Y142: 2442420414942369FALSO
B143: FALSE | C143: 24250 | D143: 204828 - 3ª ENTREGA | E143: 42095 | F143: =IFERROR(VLOOKUP('Gestão de Prazos'!$E143,Tabela6[],2,0),"Cadastrar produto na aba (Cadastro de Produtos)") -> EXEMPLO 27 | G143: =IFERROR(VLOOKUP('Gestão de Prazos'!$E143,Tabela6[],6,0),"Cadastrar") -> 0 | H143: 2020-12-22 | I143: 18120000 | J143: 1960000 | K143: - | L143: =IFERROR('Gestão de Prazos'!$J97/'Gestão de Prazos'!$K97,"-") -> 100 | M143: 1000 | N143: =ROUNDUP('Gestão de Prazos'!$J143/'Gestão de Prazos'!$M143,0) -> 1960 | O143: SP | P143: 2021-01-13 | S143: 2021-01-13 | U143: =VLOOKUP('Gestão de Prazos'!$E143,Tabela6[],7,0) -> 0.0035 | V143: ='Gestão de Prazos'!$U143*'Gestão de Prazos'!$J143 -> 6860 | Y143: =CONCATENATE($C143,$D143,$E143,$B143) -> 24250204828 - 3ª ENTREGA42095FALSO
B144: FALSE | C144: 24376 | D144: 203851 | E144: 33470 | F144: =IFERROR(VLOOKUP('Gestão de Prazos'!$E144,Tabela6[],2,0),"Cadastrar produto na aba (Cadastro de Produtos)") -> EXEMPLO 4 | G144: =IFERROR(VLOOKUP('Gestão de Prazos'!$E144,Tabela6[],6,0),"Cadastrar") -> 0 | H144: 2020-12-10 | I144: 110000 | J144: 110000 | K144: 200 | L144: =IFERROR('Gestão de Prazos'!$J122/'Gestão de Prazos'!$K122,"-") -> - | M144: 5 | N144: =ROUNDUP('Gestão de Prazos'!$J144/'Gestão de Prazos'!$M144,0) -> 22000 | O144: RS | P144: 2021-01-08 | S144: 2021-01-08 | U144: =VLOOKUP('Gestão de Prazos'!$E144,Tabela6[],7,0) -> 0 | V144: ='Gestão de Prazos'!$U144*'Gestão de Prazos'!$J144 -> 0 | Y144: 2437620385133470FALSO
B145: FALSE | C145: 24377 | D145: 203851 | E145: 33487 | F145: =IFERROR(VLOOKUP('Gestão de Prazos'!$E145,Tabela6[],2,0),"Cadastrar produto na aba (Cadastro de Produtos)") -> EXEMPLO 5 | G145: =IFERROR(VLOOKUP('Gestão de Prazos'!$E145,Tabela6[],6,0),"Cadastrar") -> 0 | H145: 2020-12-10 | I145: 90000 | J145: 90000 | K145: 200 | L145: =IFERROR('Gestão de Prazos'!$J127/'Gestão de Prazos'!$K127,"-") -> - | M145: 5 | N145: =ROUNDUP('Gestão de Prazos'!$J145/'Gestão de Prazos'!$M145,0) -> 18000 | O145: RS | P145: 2021-01-08 | S145: 2021-01-08 | U145: =VLOOKUP('Gestão de Prazos'!$E145,Tabela6[],7,0) -> 0 | V145: ='Gestão de Prazos'!$U145*'Gestão de Prazos'!$J145 -> 0 | Y145: 2437720385133487FALSO
B146: FALSE | C146: 24378 | D146: 203851 | E146: 33489 | F146: =IFERROR(VLOOKUP('Gestão de Prazos'!$E146,Tabela6[],2,0),"Cadastrar produto na aba (Cadastro de Produtos)") -> EXEMPLO 7 | G146: =IFERROR(VLOOKUP('Gestão de Prazos'!$E146,Tabela6[],6,0),"Cadastrar") -> 0 | H146: 2020-12-10 | I146: 40000 | J146: 40000 | K146: 200 | L146: =IFERROR('Gestão de Prazos'!$J130/'Gestão de Prazos'!$K130,"-") -> - | M146: 5 | N146: =ROUNDUP('Gestão de Prazos'!$J146/'Gestão de Prazos'!$M146,0) -> 8000 | O146: RS | P146: 2021-01-08 | S146: 2021-01-08 | U146: =VLOOKUP('Gestão de Prazos'!$E146,Tabela6[],7,0) -> 0 | V146: ='Gestão de Prazos'!$U146*'Gestão de Prazos'!$J146 -> 0 | Y146: 2437820385133489FALSO
B147: FALSE | C147: 24375 | D147: 203851 | E147: 33468 | F147: =IFERROR(VLOOKUP('Gestão de Prazos'!$E147,Tabela6[],2,0),"Cadastrar produto na aba (Cadastro de Produtos)") -> Exemplo 2 | G147: =IFERROR(VLOOKUP('Gestão de Prazos'!$E147,Tabela6[],6,0),"Cadastrar") -> 0 | H147: 2020-12-10 | I147: 80000 | J147: 80000 | K147: 200 | L147: =IFERROR('Gestão de Prazos'!$J135/'Gestão de Prazos'!$K135,"-") -> - | M147: 5 | N147: =ROUNDUP('Gestão de Prazos'!$J147/'Gestão de Prazos'!$M147,0) -> 16000 | O147: RS | P147: 2021-01-08 | S147: 2021-01-08 | U147: =VLOOKUP('Gestão de Prazos'!$E147,Tabela6[],7,0) -> 0 | V147: ='Gestão de Prazos'!$U147*'Gestão de Prazos'!$J147 -> 0 | Y147: 2437520385133468FALSO
B148: FALSE | C148: 24543 | D148: 204969 | E148: 39227 | F148: =IFERROR(VLOOKUP('Gestão de Prazos'!$E148,Tabela6[],2,0),"Cadastrar produto na aba (Cadastro de Produtos)") -> EXEMPLO 49 | G148: =IFERROR(VLOOKUP('Gestão de Prazos'!$E148,Tabela6[],6,0),"Cadastrar") -> 0 | H148: 2020-12-22 | I148: 10180 | J148: 10180 | K148: - | L148: =IFERROR('Gestão de Prazos'!$J28/'Gestão de Prazos'!$K28,"-") -> - | M148: 20 | N148: =ROUNDUP('Gestão de Prazos'!$J148/'Gestão de Prazos'!$M148,0) -> 509 | O148: SP | P148: 2021-01-05 | S148: 2021-01-05 | U148: =VLOOKUP('Gestão de Prazos'!$E148,Tabela6[],7,0) -> 0.112 | V148: ='Gestão de Prazos'!$U148*'Gestão de Prazos'!$J148 -> 1140.16 | Y148: 2454320496939227FALSO
B149: FALSE | C149: 24003 | D149: 200522 | E149: 12654 | F149: =IFERROR(VLOOKUP('Gestão de Prazos'!$E149,Tabela6[],2,0),"Cadastrar produto na aba (Cadastro de Produtos)") -> EXEMPLO 32 | G149: =IFERROR(VLOOKUP('Gestão de Prazos'!$E149,Tabela6[],6,0),"Cadastrar") -> 0 | H149: 2020-11-11 | I149: 102000 | J149: 102000 | K149: - | L149: =IFERROR('Gestão de Prazos'!$J16/'Gestão de Prazos'!$K16,"-") -> - | M149: 3000 | N149: =ROUNDUP('Gestão de Prazos'!$J149/'Gestão de Prazos'!$M149,0) -> 34 | O149: SP | P149: 2021-01-04 | S149: 2021-01-04 | U149: =VLOOKUP('Gestão de Prazos'!$E149,Tabela6[],7,0) -> 0.0045 | V149: ='Gestão de Prazos'!$U149*'Gestão de Prazos'!$J149 -> 459 | Y149: 2400320052212654FALSO
B150: FALSE | C150: 24002 | D150: 200522 | E150: 39227 | F150: =IFERROR(VLOOKUP('Gestão de Prazos'!$E150,Tabela6[],2,0),"Cadastrar produto na aba (Cadastro de Produtos)") -> EXEMPLO 49 | G150: =IFERROR(VLOOKUP('Gestão de Prazos'!$E150,Tabela6[],6,0),"Cadastrar") -> 0 | H150: 2020-11-11 | I150: 3580 | J150: 3580 | K150: - | L150: =IFERROR('Gestão de Prazos'!$J24/'Gestão de Prazos'!$K24,"-") -> 500 | M150: 20 | N150: =ROUNDUP('Gestão de Prazos'!$J150/'Gestão de Prazos'!$M150,0) -> 179 | O150: SP | P150: 2021-01-04 | S150: 2021-01-04 | U150: =VLOOKUP('Gestão de Prazos'!$E150,Tabela6[],7,0) -> 0.112 | V150: ='Gestão de Prazos'!$U150*'Gestão de Prazos'!$J150 -> 400.96 | Y150: 2400220052239227FALSO
B151: FALSE | C151: 23958 | D151: 199686 | E151: 27349 | F151: =IFERROR(VLOOKUP('Gestão de Prazos'!$E151,Tabela6[],2,0),"Cadastrar produto na aba (Cadastro de Produtos)") -> EXEMPLO 15 | G151: =IFERROR(VLOOKUP('Gestão de Prazos'!$E151,Tabela6[],6,0),"Cadastrar") -> 0 | H151: 2020-11-03 | I151: 5000000 | J151: 5000000 | K151: - | L151: =IFERROR('Gestão de Prazos'!$J67/'Gestão de Prazos'!$K67,"-") -> - | M151: 2000 | N151: =ROUNDUP('Gestão de Prazos'!$J151/'Gestão de Prazos'!$M151,0) -> 2500 | O151: RS | P151: 2021-01-04 | S151: 2021-01-04 | U151: =VLOOKUP('Gestão de Prazos'!$E151,Tabela6[],7,0) -> 0.0034 | V151: ='Gestão de Prazos'!$U151*'Gestão de Prazos'!$J151 -> 17000 | Y151: 2395819968627349FALSO

Sheet CARROS (JANEIRO 2021) (hidden)
C4: BR SUPPLY
B5: CARRO 1 | C5: OP | D5: OC | E5: DESCRIÇÃO | F5: Quantidade total do Pedido | G5: PESO PRODUZIDO | H5: DATA ENTREGA CLIENTE | I5: REALIZAR AGENDAMENTO PARA: | J5: EM ESTOQUE (SOBRA) | K5: STATUS PRODUÇÃO ROTATEK | L5: LOCAL DE ENTREGA | M5: STATUS | N5: AGENDAMENTO
C6: 24003 | D6: 200522 | E6: Formulário Continuo Branco 80 colunas 1 via | F6: 102000 | H6: 2021-01-04 | I6: 2021-01-04 | M6: entregue
C7: 24002 | D7: 200522 | E7: Bobina Papel Calculadora Go Office 57mmx30m c/ 20un | F7: 3580 | H7: 2021-01-04 | I7: 2021-01-05 | M7: entregue
C8: 24543 | D8: 204969 | E8: Bobina Papel Calculadora Go Office 57mmx30m c/ 20un | F8: 10180 | H8: 2021-01-05 | I8: 2021-01-28 | M8: coleta dia 26/01
C9: 24544 | D9: 204961 | E9: Bobina Papel Calculadora Go Office 57mmx30m c/ 20un | F9: 4400 | H9: 2021-01-20 | I9: 2021-01-28 | M9: coleta dia 20/01
C10: 24725 | D10: 206703 | E10: Envelope ATM Bradesco Acerto em Dinheiro PCT 250 | F10: 100000 | H10: 2021-01-29 | I10: =H10 -> 2021-01-29
C11: 24726 | D11: 206704 | E11: Envelope ATM Bradesco Entrega Cheque Custodia PCT 250 | F11: 37500 | H11: 2021-01-29 | I11: =H11 -> 2021-01-29
C12: 24250 | D12: 204828 - 1ª ENTREGA | E12: Envelope Multi Expresso Bradesco | F12: 980000 | H12: 2021-01-14 | I12: 2021-01-14
C13: 24250 | D13: 204828 - 2ª ENTREGA | E13: Envelope Multi Expresso Bradesco | F13: 980000 | H13: 2021-01-14 | I13: 2021-01-14
C14: 24250 | D14: 204828 - 3ª ENTREGA | E14: Envelope Multi Expresso Bradesco | F14: 1960000 | H14: 2021-01-13 | I14: 2021-01-13
C15: 24250 | D15: 204828 - 4ª ENTREGA | E15: Envelope Multi Expresso Bradesco | F15: 1960000 | H15: 2021-01-14 | I15: 2021-01-14
C16: 24250 | D16: 204828 - 5ª ENTREGA | E16: Envelope Multi Expresso Bradesco | F16: 1960000 | H16: 2021-01-15 | I16: 2021-01-15
C17: 24250 | D17: 204828 - 6ª ENTREGA | E17: Envelope Multi Expresso Bradesco | F17: 1960000 | H17: 2021-01-18 | I17: 2021-01-18
C18: 24250 | D18: 204828 - 7ª ENTREGA | E18: Envelope Multi Expresso Bradesco | F18: 1960000 | H18: 2021-01-20 | I18: 2021-01-20
C19: 24250 | D19: 204828 - 8ª ENTREGA | E19: Envelope Multi Expresso Bradesco | F19: 1960000 | H19: 2021-01-25 | I19: 2021-01-25
C20: 24250 | D20: 204828 - 9ª ENTREGA | E20: Envelope Multi Expresso Bradesco | F20: 1960000 | H20: 2021-01-27 | I20: 2021-01-27
C21: 24250 | D21: 204828 - 10ª ENTREGA | E21: Envelope Multi Expresso Bradesco | F21: 1960000 | H21: 2021-01-29 | I21: 2021-01-29
C23: =SUM(G22:G22) -> 0
B25: CARRO 1 | C25: OP | D25: OC | E25: DESCRIÇÃO | F25: Quantidade total do Pedido | G25: PESO PRODUZIDO | H25: DATA ENTREGA CLIENTE | I25: REALIZAR AGENDAMENTO PARA: | J25: EM ESTOQUE (SOBRA) | K25: STATUS PRODUÇÃO ROTATEK | L25: LOCAL DE ENTREGA | M25: STATUS | N25: AGENDAMENTO
C26: 24448 | D26: 204411 | E26: Bobina Papel Calculadora Go Office 57mmx30m c/ 20un | F26: 2000 | H26: 2021-01-20 | I26: 2020-01-25 | M26: coleta dia 20/01
C27: COMP | D27: 204411 | E27: Bobina para Fax 216mmx30m c/1 | F27: 60 | H27: 2021-01-20 | I27: 2020-01-25
C28: 23958 | D28: 199686 | E28: Envelope ATM Dinheiro Sicred 2000 um | F28: 5000000 | H28: 2021-01-04 | I28: 15/01/2021 - apenas 24 paletes
C29: 23958 | D29: 199686 | E29: Envelope ATM Dinheiro Sicred 2000 um | F29: 5000000 | H29: 2021-01-04 | I29: 25/01/2021 - 18 paletes restantes
C30: 24414 | D30: 204056 | E30: Envelope Sangria Raia Drogasil Pct 1.000 IND | F30: 555000 | H30: 2021-01-15 | I30: 2020-01-25
C31: 24376 | D31: 203851 | E31: Prop de Adesão ao Crédito Pessoal Agibank Pct 200 fls | F31: 110000 | H31: 2021-01-08 | I31: 2021-01-15
C32: 24375 | D32: 203851 | E32: Prop Adesão ao Credito Pessoal Consig Agibank Pct 200 | F32: 80000 | H32: 2021-01-08 | I32: 2021-01-15
C33: 24377 | D33: 203851 | E33: Autorização de Debito Agibank Pct 200 fls | F33: 90000 | H33: 2021-01-08 | I33: 2021-01-15
C34: 24378 | D34: 203851 | E34: Prop de abertura de conta corrente PF Agibank Pct 200 | F34: 40000 | H34: 2021-01-08 | I34: 2021-01-15
C35: 24424 | D35: 204149 | E35: Termo de Consentimento Cartão de Crédito Consig PCT 200fls | F35: 20000 | H35: 2021-01-14 | I35: 2021-01-15
C36: 24438 | D36: 204255 | E36: Autor de Saque Via Cartão de Crédito Cons Agibank PCT 200fls | F36: 40000 | H36: 2021-01-15 | I36: 2021-01-15
C43: LEGENDA:
E44: OPs que já entraram em produção e estão aguardando algum processo.
E45: OP's já finalizadas, aguardando entrega.
E46: OP's em branco já estão em programação.

Sheet CARROS (FEVEREIRO 2021) (hidden)
C4: BR SUPPLY
B5: CARRO 1 | C5: OP | D5: OC | E5: DESCRIÇÃO | F5: Quantidade total do Pedido | G5: DATA ENTREGA CLIENTE | H5: REALIZAR AGENDAMENTO PARA: | I5: EM ESTOQUE (SOBRA) | J5: STATUS PRODUÇÃO ROTATEK | K5: LOCAL DE ENTREGA | L5: STATUS | M5: AGENDAMENTO
C6: 24676 | D6: 205970 | E6: Bobina Papel Calculadora Go Office 57mmx30m c/ 20un | F6: 5160 | G6: 2021-01-25 | H6: 2021-02-05 | K6: SP | L6: coleta na manuseadora dia 03/02
C7: 24250 | D7: 204828 - 11ª ENTREGA | E7: Envelope Multi Expresso Bradesco | F7: 2440000 | G7: 2021-02-01 | H7: =G7 -> 2021-02-01 | K7: SP
C8: 24763 | D8: 206118 | E8: BR SUPPLY - BOBINA PDV PAPEL CALCULADORA GO OFFICE (MOD 039227) - PDV - PEDIDO 206118 - TRIBUTADO | F8: 5420 | G8: 2021-01-21 | H8: 2021-02-05 | K8: SP | L8: coleta na manuseadora dia 03/02
C9: 24769 | D9: 207066 | E9: BR SUPPLY - BOBINA PDV PAPEL CALCULADORA - GO OFFICE - 039228 - TRIBUTADO - Pedido 207066 - TRIBUTADO | F9: 2000 | G9: 2021-01-22 | H9: 2021-02-05 | K9: SP | L9: coleta na manuseadora dia 03/02
C10: 24766 | D10: 206118 | E10: Formulário Continuo Branco 80 colunas 1 via | F10: 135000 | G10: 2021-01-21 | H10: 2021-02-05 | K10: SP | L10: finalizado
B15: CARRO 1 | C15: OP | D15: OC | E15: DESCRIÇÃO | F15: Quantidade total do Pedido | G15: DATA ENTREGA CLIENTE | H15: REALIZAR AGENDAMENTO PARA: | I15: EM ESTOQUE (SOBRA) | J15: STATUS PRODUÇÃO ROTATEK | K15: LOCAL DE ENTREGA | L15: STATUS | M15: AGENDAMENTO
C16: 24452 | D16: 204381 | E16: Bobina Papel Calculadora Go Office 57mmx30m c/ 20un | F16: 2000 | K16: RS | L16: finalizado
C17: 24453 | D17: 204381 | E17: Bobina Papel Calculadora Go Office 57mmx30m c/ 10un | F17: 1210 | K17: RS | L17: finalizado
C18: 24454 | D18: 204381 | E18: Bobina Térmica Cotepe Go Office80mmx40m c/20un | F18: 1660 | K18: RS | L18: finalizado
C19: 24252 | D19: 202652 | E19: Envelope de Segurança Sicredi | F19: 20000 | G19: 2021-02-01 | K19: RS | L19: coleta 01/03
C20: 24416 | D20: 204057 | E20: Envelope Depósito ATM em Dinheiro Sicred IND | F20: 5000000 | G20: 2021-02-01 | K20: RS
C21: 24697 | D21: 206181 | E21: Envelope ATM Dinheiro Sicred 2000 um | F21: 2400000 | G21: 2021-02-15 | K21: RS
C22: 24415 | D22: 204057 | E22: Envelope Depósito ATM em Cheque Sicred IND | F22: 1600000 | G22: 2021-02-01 | H22: 2021-02-01 | K22: RS | L22: finalizado
C23: 24698 | D23: 206224 | E23: Prop de abertura de conta corrente PF Agibank Pct 200 | F23: 40000 | G23: 2021-02-08 | H23: 2021-02-01 | K23: RS | L23: finalizado
C24: 24699 | D24: 206274 | E24: Autorização de Debito Agibank Pct 200 fls | F24: 80000 | G24: 2021-02-08 | H24: 2021-02-01 | K24: RS | L24: finalizado
C25: 24700 | D25: 206318 | E25: Prop de Adesão ao Crédito Pessoal Agibank Pct 200 fls | F25: 70000 | G25: 2021-02-08 | H25: 2021-02-01 | K25: RS | L25: finalizado
C26: 24701 | D26: 206217 | E26: Prop Adesão ao Credito Pessoal Consig Agibank Pct 200 | F26: 70000 | G26: 2021-02-08 | H26: 2021-02-01 | K26: RS | L26: finalizado
C27: 24414 | D27: 204056 | E27: Envelope Sangria Raia Drogasil Pct 1.000 IND | F27: 555000 | G27: 2021-01-15 | H27: 2021-02-01 | K27: RS | L27: finalizado
C28: 24438 | D28: 204255 | E28: Autor de Saque Via Cartão de Crédito Cons Agibank PCT 200fls | F28: 40000 | G28: 2021-01-15 | H28: 2021-02-01 | K28: RS | L28: finalizado
C33: LEGENDA:
E34: OPs que já entraram em produção e estão aguardando algum processo.
E35: OP's já finalizadas, aguardando entrega.
E36: OP's em branco já estão em programação.

Sheet CARROS (MARÇO 2021) (hidden)
C1: BR SUPPLY
B2: CARRO 1 | C2: OP | D2: OC | E2: DESCRIÇÃO | F2: Quantidade total do Pedido | G2: DATA ENTREGA CLIENTE | H2: REALIZAR AGENDAMENTO PARA: | I2: STATUS PRODUÇÃO | J2: LOCAL DE ENTREGA | K2: STATUS | L2: AGENDAMENTO
C3: 25148 | D3: 209908 | E3: Carta de Boas Vindas Dental | F3: 155000 | G3: 2021-03-10 | H3: 2021-03-10 | I3: finalizado | J3: SP | K3: EXPEDIDO
C4: 24764 | D4: 206089 | E4: Bobina Papel Calculadora Go Office 57mmx30m c/ 20un | F4: 3600 | G4: 2021-02-12 | H4: 2021-03-05 | I4: finalizado | J4: SP | K4: EXPEDIDO
C5: 24767 | D5: 206089 | E5: Bobina Papel Calculadora Itau 57mm x 75m c/20 | F5: 1880 | G5: 2021-02-12 | H5: 2021-03-05 | I5: finalizado | J5: SP | K5: EXPEDIDO
C6: 24765 | D6: 206103 | E6: Bobina Papel Calculadora Go Office 57mmx30m c/ 20un | F6: 2000 | G6: 2021-02-24 | H6: 2021-03-01 | I6: finalizado | J6: SP | K6: EXPEDIDO
C7: 24768/25400 | D7: 206103 | E7: Bobina Calc Olivetti Itau 41A43 01 via | F7: 20000 | G7: 2021-02-24 | H7: 2021-03-25 | I7: finalizado | J7: SP | K7: EXPEDIDO
C8: 25201 | D8: 210390 | E8: Bobina Térmica Cotepe Go Office80mmx40m c/20un | F8: 4000 | G8: 2021-03-01 | H8: 2021-03-25 | I8: finalizado | J8: SP | K8: EXPEDIDO
C9: 25202 | D9: 210390 | E9: Bobina Papel Calculadora Go Office 57mmx30m c/ 20un | F9: 8000 | G9: 2021-03-01 | H9: 2021-03-25 | I9: finalizado | J9: SP | K9: EXPEDIDO
C10: 25378 | D10: 210390 | E10: Bobina Autocopiativa PDV Go Office76mmx20m c/ 30un | F10: 3000 | G10: 2021-03-01 | H10: 2021-03-25 | I10: finalizado | J10: SP | K10: EXPEDIDO
C11: 25241 | D11: 210777 | E11: Bobina Papel Calculadora Go Office 57mmx30m c/ 20un | F11: 6000 | G11: 2021-03-10 | H11: 2021-03-25 | I11: finalizado | J11: SP | K11: EXPEDIDO
C12: 25240 | D12: 210777 | E12: Bobina Térmica Cotepe Go Office80mmx40m c/20un | F12: 2860 | G12: 2021-03-10 | H12: 2021-03-25 | I12: finalizado | J12: SP | K12: EXPEDIDO
C13: 25310 | D13: 209452 | E13: Bobina Papel Calculadora Itau 57mm x 75m c/20 | F13: 8600 | G13: 2021-02-22 | H13: 2021-03-10 | I13: finalizado | J13: SP | K13: EXPEDIDO
C14: 25311 | D14: 209452 | E14: Bobina Papel Calculadora Itau - Cx 20un | F14: 1000 | G14: 2021-02-22 | H14: 2021-03-10 | I14: finalizado | J14: SP | K14: EXPEDIDO
C15: 25380 | D15: 210400 | E15: Bobina Autocopiativa PDV Go Office76mmx20m c/ 30un | F15: 600 | G15: 2021-03-10 | H15: 2021-03-25 | I15: finalizado | J15: SP | K15: EXPEDIDO
C16: 25203 | D16: 210400 | E16: Formulário Continuo Branco 80 colunas 1 via | F16: 141000 | G16: 2021-03-10 | H16: 2021-03-10 | I16: finalizado | J16: SP | K16: EXPEDIDO
C17: 25204 | D17: 210400 | E17: Formulário Continuo Razão Esdeva, 3 vias, 80 colunas, 56g/m2 | F17: 10000 | G17: 2021-03-10 | H17: 2021-03-29 | I17: finalizado | J17: SP | K17: EXPEDIDO
C18: 25205 | D18: 210385 | E18: Form Cont Branco 2 vias 80 colunas autocop Staples | F18: 150000 | G18: 2021-03-15 | H18: pendencia de papel e AGUARDANDO MANUSEIO | I18: Passando para p carro de Abril | J18: SP
C19: 25349 | D19: 211372 | E19: Envelope ATM Bradesco Entrega Cheque Custodia PCT 250 | F19: 70250 | G19: 2021-03-22 | H19: 2021-03-26 | I19: falta shirink | J19: SP | K19: EXPEDIDO
C20: 25351 | D20: 211377 | E20: Envelope ATM Bradesco Acerto em Dinheiro PCT 250 | F20: 25000 | G20: 2021-03-22 | H20: 2021-03-26 | I20: falta shirink | J20: SP | K20: EXPEDIDO
B23: CARRO 1 | C23: OP | D23: OC | E23: DESCRIÇÃO | F23: Quantidade total do Pedido | G23: DATA ENTREGA CLIENTE | H23: REALIZAR AGENDAMENTO PARA: | I23: STATUS PRODUÇÃO | J23: LOCAL DE ENTREGA | K23: STATUS | L23: AGENDAMENTO
C24: 24458 | D24: 204412 | E24: Formulário Continuo Recibo de Pagamento c/bloq Autoc 3vias | F24: 100000 | G24: 2021-03-10 | H24: 16/03 - DEPENDE DE PAPEL E MANUSEIO | I24: Passando para p carro de Abril | J24: RS
C25: 24702 | D25: 206183 | E25: Envelope ATM Dinheiro Sicred 2000 um | F25: 3584000 | G25: 2021-03-01 | H25: 2021-03-05 | I25: finalizado | J25: RS
C26: 24706 | D26: 206230 | E26: Prop de Adesão ao Crédito Pessoal Agibank Pct 200 fls | F26: 70000 | G26: 2021-03-05 | H26: 2021-03-12 | I26: finalizado | J26: RS | K26: EXPEDIDO
C27: 24707 | D27: 206258 | E27: Prop Adesão ao Credito Pessoal Consig Agibank Pct 200 | F27: 70000 | G27: 2021-03-05 | H27: 2021-03-12 | I27: finalizado | J27: RS | K27: EXPEDIDO
C28: 24708 | D28: 206338 | E28: Autorização de Debito Agibank Pct 200 fls | F28: 80000 | G28: 2021-03-05 | H28: 2021-03-12 | I28: finalizado | J28: RS | K28: EXPEDIDO
C29: 24709 | D29: 206292 | E29: Prop de abertura de conta corrente PF Agibank Pct 200 | F29: 40000 | G29: 2021-03-05 | H29: 2021-03-12 | I29: finalizado | J29: RS | K29: EXPEDIDO
C30: 24714 | D30: 206333 | E30: Prop de Adesão Cartão de Crédito Consi Agibank PCT 200fls | F30: 20000 | G30: 2021-03-05 | H30: 2021-03-12 | I30: finalizado | J30: RS | K30: EXPEDIDO
C31: 24715 | D31: 206333 | E31: Autor de Saque Via Cartão de Crédito Cons Agibank PCT 200fls | F31: 20000 | G31: 2021-03-05 | H31: 2021-03-12 | I31: finalizado | J31: RS | K31: EXPEDIDO
C32: 24716 | D32: 206333 | E32: Termo de Consentimento Cartão de Crédito Consig PCT 200fls | F32: 20000 | G32: 2021-03-05 | H32: 2021-03-12 | I32: finalizado | J32: RS | K32: EXPEDIDO
C33: 25149 | D33: 209993 | E33: Prop de Adesão Cartão de Crédito Consi Agibank PCT 200fls | F33: 30000 | G33: 2021-03-08 | H33: 2021-03-12 | I33: finalizado | J33: RS | K33: EXPEDIDO
C34: 24704 | D34: 206182 | E34: Envelope ATM Cheque Sicred 2000 um | F34: 1470000 | G34: 2021-03-01 | H34: 2021-03-12 | I34: finalizado | J34: RS | K34: EXPEDIDO
C35: 24452 | D35: 204381 | E35: Bobina Papel Calculadora Go Office 57mmx30m c/ 20un | F35: 2000 | H35: 2021-03-10 | I35: finalizado | J35: RS | K35: EXPEDIDO
C36: 24453 | D36: 204381 | E36: Bobina Papel Calculadora Go Office 57mmx30m c/ 10un | F36: 1210 | H36: 2021-03-10 | I36: finalizado | J36: RS | K36: EXPEDIDO
C37: 24454 | D37: 204381 | E37: Bobina Térmica Cotepe Go Office80mmx40m c/20un | F37: 1660 | H37: 2021-03-10 | I37: finalizado | J37: RS | K37: EXPEDIDO
C38: 24455 | D38: 204394 | E38: Bobina Papel Calculadora Go Office 57mmx30m c/ 20un | F38: 2000 | G38: 2021-03-01 | H38: 2021-03-10 | I38: finalizado | J38: RS | K38: CARRO DE 20/ABRIL
C39: 24457 | D39: 204412 | E39: Bobina Papel Calculadora Go Office 57mmx30m c/ 10un | F39: 1220 | G39: 2021-03-10 | H39: 2021-03-10 | I39: finalizado | J39: RS | K39: EXPEDIDO
C40: 24703 | D40: 206182 | E40: Envelope para dinheiro Drogra Raia Drogasil Pct 1.000 IND | F40: 500000 | G40: 2021-03-01 | H40: 2021-03-10 | I40: finalizado | J40: RS | K40: EXPEDIDO
C41: 24456 | D41: 204394 | E41: Bobina Térmica Cotepe Go Office80mmx40m c/20un | F41: 1760 | G41: 2021-03-01 | H41: 2021-03-10 | I41: finalizado | J41: RS | K41: EXPEDIDO
C42: 24702 | D42: 206183 | E42: Envelope ATM Dinheiro Sicred 2000 um | F42: =5000000-F25 -> 1416000 | G42: 2021-03-01 | H42: 2021-03-10 | I42: finalizado | J42: RS | K42: EXPEDIDO
C43: COMP | D43: 204411 | E43: Bobina para Fax 216mmx30m c/1 | F43: 60 | H43: 2021-03-10 | I43: finalizado | J43: RS | K43: finalizado
C44: 24252 | D44: 202652 | E44: Envelope de Segurança Sicredi | F44: 20000 | G44: 2021-02-01 | H44: 2021-03-10 | I44: finalizado | J44: RS | K44: EXPEDIDO
C46: LEGENDA:
E47: OPs que já entraram em produção e estão aguardando algum processo.
E48: OP's já finalizadas, aguardando entrega.
E49: OP's em branco já estão em programação.

Sheet CARROS (ABRIL 2021) (hidden)
C1: BR SUPPLY
B2: CARRO 1 | C2: OP | D2: OC | E2: DESCRIÇÃO | F2: Quantidade total do Pedido | G2: DATA ENTREGA CLIENTE | H2: REALIZAR AGENDAMENTO PARA: | I2: STATUS PRODUÇÃO ROTATEK | J2: LOCAL DE ENTREGA | K2: STATUS | L2: AGENDAMENTO
C3: 25495 | D3: 212742 | E3: Bobina Papel Calculadora Go Office 57mmx30m c/ 20un | F3: 7380 | G3: 2021-04-08 | H3: 2021-04-27 | I3: finalizado | J3: SP
C4: 25492 | D4: 212752 | E4: Bobina Papel Calculadora Go Office 57mmx30m c/ 20un | F4: 7380 | G4: 2021-04-27 | H4: 2021-04-27 | I4: finalizado | J4: SP
C5: 25477 | D5: 212736 | E5: Bobina Papel Calculadora Go Office 57mmx30m c/ 20un | F5: 6940 | G5: 2021-03-26 | H5: 2021-04-27 | I5: finalizado | J5: SP
C6: 25352 | D6: 211377 | E6: Envelope ATM Bradesco Acerto em Dinheiro PCT 250 | F6: 75000 | G6: 2021-04-05 | H6: 2021-04-05 | I6: finalizado | J6: SP | K6: EXPEDIDO
C7: 25491 | D7: 212821 | E7: Envelope ATM Bradesco Acerto em Dinheiro PCT 250 | F7: 175000 | G7: 2021-04-09 | H7: 2021-04-09 | I7: finalizado | J7: SP | K7: EXPEDIDO
C8: 25350 | D8: 211374 | E8: Envelope ATM Bradesco Entrega Cheque Custodia PCT 250 | F8: 75000 | G8: 2021-04-05 | H8: 2021-04-05 | I8: finalizado | J8: SP | K8: EXPEDIDO
C9: 25488 | D9: 212822 | E9: Envelope ATM Bradesco Entrega Cheque Custodia PCT 250 | F9: 175000 | G9: 2021-04-09 | H9: 2021-04-09 | I9: finalizado | J9: SP | K9: EXPEDIDO
C10: 25205 | D10: 210385 | E10: Form Cont Branco 2 vias 80 colunas autocop Staples | F10: 150000 | G10: 2021-03-15 | H10: 2021-04-30 | I10: coleta manuseadora dia 28/04 | J10: SP
C11: 24766 | D11: 206118 | E11: Formulário Contínuo Esdeva Branco 1 via | F11: 135000 | G11: Não foram expedido de acordo com os carros anteriores | H11: 2021-04-12 | I11: finalizado | J11: SP | K11: EXPEDIDO
C12: 25203 | D12: 210400 | E12: Formulário Contínuo Branco 80 colunas | F12: 15000 | H12: 2021-04-12 | I12: finalizado | J12: SP | K12: EXPEDIDO
C13: 24769 | D13: 207066 | E13: Bobina de Papel Go Office para Calculadora | F13: 2000 | H13: 2021-04-12 | I13: finalizado | J13: SP | K13: EXPEDIDO
C14: 25378 | D14: 210390 | E14: Bobina Autocopiativa Go Office PDV | F14: 3000 | H14: 2021-04-12 | I14: finalizado | J14: SP | K14: EXPEDIDO
C15: 25237 | D15: 210800 | E15: Formulário Continuo Branco 80 colunas 1 via | F15: 141000 | G15: 2021-04-12 | H15: 2021-04-12 | I15: finalizado | J15: SP | K15: EXPEDIDO
C16: 25693 | D16: 212736 | E16: Recibo de pagamento Esdeva LAB 02 s/ bloqueio cx c 3000jgs | F16: 27000 | G16: 2021-03-26 | I16: avaliando se iremos fazer na esdeva - aguardando retorno comercial | J16: SP
C17: 25581 | D17: 212895 | E17: Carta de Boas Vindas Saúde | F17: 60000 | G17: 2021-04-12 | H17: 2021-04-19 | I17: impressão ok, aguardando shirink | J17: SP | K17: EXPEDIDO
C18: 25722 | D18: 217468 | E18: Envelope Tamanho Ofício com Janela BVP PCT 5 - PRODUÇÃO EM SP | F18: 50000 | G18: 2021-04-12 | I18: Vamos produzir em SP? Aguardando posicionamento Comercial. | J18: SP
B22: CARRO 1 | C22: OP | D22: OC | E22: DESCRIÇÃO | F22: Quantidade total do Pedido | G22: DATA ENTREGA CLIENTE | H22: REALIZAR AGENDAMENTO PARA: | I22: STATUS PRODUÇÃO ROTATEK | J22: LOCAL DE ENTREGA | K22: STATUS | L22: AGENDAMENTO
C23: 25105 | D23: 209679 | E23: Prop de abertura de conta corrente PF Agibank Pct 200 | F23: 40000 | G23: 2021-04-05 | H23: 2021-04-08 | I23: finalizado | J23: RS | K23: EXPEDIDO
C24: 25147 | D24: 210139 | E24: Prop de Adesão ao Crédito Pessoal Agibank Pct 200 fls | F24: 60000 | G24: 2021-04-05 | H24: 2021-04-08 | I24: finalizado | J24: RS | K24: EXPEDIDO
C25: 24705 | D25: 206182 | E25: Envelope ATM Dinheiro Sicred 2000 um | F25: 2240000 | G25: 2021-03-01 | H25: 2021-04-08 | I25: finalizado | J25: RS | K25: EXPEDIDO
C26: 25428 | D26: 212270 | E26: Prop de Adesão Cartão de Crédito Consi Agibank PCT 200fls | F26: 90000 | G26: 2021-04-09 | H26: 2021-04-08 | I26: Impressão OK, falta acabamento | J26: RS | K26: EXPEDIDO
C27: 25427 | D27: 212248 | E27: Autor de Saque Via Cartão de Crédito Cons Agibank PCT 200fls | F27: 100000 | G27: 2021-04-09 | H27: 2021-04-08 | I27: Impressão OK, falta acabamento | J27: RS | K27: EXPEDIDO
C28: 25426 | D28: 212387 | E28: Termo de Consentimento Cartão de Crédito Consig PCT 200fls | F28: 70000 | G28: 2021-04-09 | H28: 2021-04-08 | I28: Impressão OK, falta acabamento | J28: RS | K28: EXPEDIDO
C29: 25408 | D29: 212259 | E29: Termo de Consentimento Cartão de Crédito Consig PCT 200fls | F29: 120000 | G29: 2021-04-09 | H29: 2021-04-08 | I29: Impressão OK, falta acabamento | J29: RS | K29: EXPEDIDO
C30: 25480 | D30: 212887 | E30: Prop de Adesão Cartão de Crédito Consi Agibank PCT 200fls | F30: 140000 | G30: 2021-04-09 | H30: 2021-04-08 | I30: Impressão OK, falta acabamento | J30: RS | K30: EXPEDIDO
C31: 25481 | D31: 212887 | E31: Autor de Saque Via Cartão de Crédito Cons Agibank PCT 200fls | F31: 140000 | G31: 2021-04-09 | H31: 2021-04-08 | I31: Impressão OK, falta acabamento | J31: RS | K31: EXPEDIDO
C32: 25443 | D32: 212456 | E32: Envelope Depósito ATM em Cheque Sicred IND | F32: 1200000 | G32: 2021-04-07 | H32: 2021-04-20 | I32: finalizado | J32: RS | K32: EXPEDIDO
C33: 25442 | D33: 212455 | E33: Envelope para dinheiro Drogra Raia Drogasil Pct 1.000 IND | F33: 600000 | G33: 2021-04-07 | H33: 2021-04-20 | I33: finalizado | J33: RS | K33: EXPEDIDO
C34: 25153 | D34: 209974 | E34: Bobina Papel Calculadora Go Office 57mmx30m c/ 20un | F34: 2000 | G34: 2021-04-20 | H34: 2021-04-20 | I34: finalizado | J34: RS | K34: EXPEDIDO
C35: 25381 | D35: 210772 | E35: Bobina Autocopiativa PDV Go Office76mmx20m c/ 30un | F35: 750 | G35: 2021-03-15 | H35: 2021-04-20 | I35: finalizado | J35: RS | K35: EXPEDIDO
C36: 25382 | D36: 210789 | E36: Bobina Autocopiativa PDV Go Office76mmx20m c/ 30un | F36: 1680 | G36: 2021-02-26 | H36: 2021-04-20 | I36: finalizado | J36: RS | K36: EXPEDIDO
C37: 24950 | D37: 208152 | E37: Bobina Papel Calculadora Go Office 57mmx30m c/ 10un | F37: 1500 | G37: 2021-04-08 | H37: 2021-04-20 | I37: finalizado | J37: RS | K37: EXPEDIDO
C38: 24951 | D38: 208149 | E38: Bobina Papel Calculadora Go Office 57mmx30m c/ 20un | F38: 2000 | G38: 2021-03-26 | H38: 2021-04-20 | I38: finalizado | J38: RS | K38: EXPEDIDO
C39: 25152 | D39: 209974 | E39: Bobina Térmica Cotepe Go Office80mmx40m c/20un | F39: 1400 | G39: 2021-04-20 | H39: 2021-04-20 | I39: finalizado | J39: RS | K39: EXPEDIDO
C40: 25154 | D40: 209965 | E40: Bobina Térmica Cotepe Go Office80mmx40m c/20un | F40: 1480 | G40: 2021-04-06 | H40: 2021-04-20 | I40: finalizado | J40: RS | K40: EXPEDIDO
C41: 24458 | D41: 204412 | E41: Formulário Continuo Recibo de Pagamento c/bloq Autoc 3vias | F41: 100000 | G41: 2021-03-10 | H41: CANCELADO | I41: coleta manuseadora dia 28/04 | J41: RS
C42: 24455/25634 | D42: 204394 | E42: Bobina Papel Calculadora Go Office 57mmx30m c/ 20un | F42: 2000 | G42: 2021-03-01 | H42: 2021-04-20 | I42: finalizado | J42: RS | K42: EXPEDIDO 1760 DE ACORDO COM A MINUTA
C44: LEGENDA:
E45: OPs que já entraram em produção e estão aguardando algum processo.
E46: OP's já finalizadas, aguardando entrega.
E47: OP's em branco já estão em programação.
